Workbook

Sheet Start
D11: Tabelid 2
D13: Andmeloendid. Andmeanalüüs ja andmete korrastamine
D15: Sorteerimine, filtreerimine, kokkuvõtted, koondid jm

Sheet Sisukord
B4: Andmeloendite põhiomadused ja põhitegevused nendega
B5: Arvutite müükide arvestus
B6: Töötajate nimekiri
B7: Puidu müükide tabel
B8: Tabeli kirjete sorteerimine ja grupeerimine
B9: Päringud ja filtreerimine
B10: Autofilter
B11: Arendatud filter
B12: Makro kasutamine arendatud filtriga
B13: Kokkuvõtted, koondid jmt
B14: Vahekokkuvõtted - Subtotals
B15: Risttabelid - Pivot Table Report
B16: Funktsioonid COUNTIF ja SUMIF
B17: Andmebaaside funktsioonid

Sheet Loendid
E1: veeb | F1: klipp Andmeloendid
A3: Andmeloendite põhiomadused ja põhitegevused nendega
H4: Arvutid
H6: Mark | I6: Protsessori tüüp | J6: Takt- sagedus | K6: Põhimälu maht | L6: Kõvaketta maht | M6: Hind
H7: Aragorn | I7: AMD Athlon64 | J7: 3 | K7: 512 | L7: 160 | M7: 499
H8: Arven | I8: Intel Core 2 | J8: 2.6 | K8: 256 | L8: 200 | M8: 369
H9: Balrog | I9: Intel Celeron | J9: 2.8 | K9: 256 | L9: 80 | M9: 419
H10: Eldar | I10: Intel Xeon | J10: 3 | K10: 512 | L10: 160 | M10: 465
H11: Elend | I11: Intel Celeron | J11: 4 | K11: 2048 | L11: 400 | M11: 920
H12: Faram | I12: AMD Athlon64 | J12: 3 | K12: 512 | L12: 210 | M12: 599
H13: Frodo | I13: AMD Athlon64 | J13: 3 | K13: 4072 | L13: 500 | M13: 870
B14: Põhitegevused | H14: Gandalf | I14: Intel Xeon | J14: 3.2 | K14: 512 | L14: 160 | M14: 849
H15: Grimbold | I15: Intel Core 2 | J15: 3.8 | K15: 1024 | L15: 320 | M15: 1149
H16: Kalvar | I16: Intel Xeon | J16: 3 | K16: 512 | L16: 160 | M16: 699
H17: Marvin | I17: Intel Celeron | J17: 3 | K17: 512 | L17: 160 | M17: 370
H18: Rohan | I18: AMD Athlon64 | J18: 3.5 | K18: 512 | L18: 160 | M18: 340
H19: Sauron | I19: Intel Xeon | J19: 2.5 | K19: 256 | L19: 180 | M19: 339

Sheet A_müügid
B3: Arvutite müükide arvestus | F3: arvutid
D5: Kokku | E5: =SUM(Arv) -> 90 | G5: =SUM(Maksumus) -> 55522
B7: Kuupäev | C7: Linn | D7: Arvuti | E7: Arv | F7: Hind | G7: Maksumus
B8: 2015-01-02 | C8: Tallinn | D8: Frodo | E8: 2 | F8: =VLOOKUP(Arvuti, Arvutid, 6, 0) -> 870 | G8: =Hind * Arv -> 1740
B9: 2015-01-02 | C9: Valga | D9: Balrog | E9: 1 | F9: =VLOOKUP(Arvuti, Arvutid, 6, 0) -> 419 | G9: 419
B10: 2015-01-03 | C10: Võru | D10: Gandalf | E10: 2 | F10: 849 | G10: 1698
B11: 2015-01-03 | C11: Tallinn | D11: Balrog | E11: 3 | F11: 419 | G11: 1257
B12: 2015-01-03 | C12: Tallinn | D12: Aragorn | E12: 2 | F12: 499 | G12: 998
B13: 2015-01-04 | C13: Tartu | D13: Balrog | E13: 5 | F13: 419 | G13: 2095
B14: 2015-01-04 | C14: Tallinn | D14: Eldar | E14: 3 | F14: 465 | G14: 1395
B15: 2015-01-07 | C15: Valga | D15: Balrog | E15: 6 | F15: 419 | G15: 2514
B16: 2015-01-07 | C16: Pärnu | D16: Eldar | E16: 3 | F16: 465 | G16: 1395
B17: 2015-01-07 | C17: Valga | D17: Frodo | E17: 1 | F17: 870 | G17: 870
B18: 2015-01-07 | C18: Tallinn | D18: Faram | E18: 1 | F18: 599 | G18: 599
B19: 2015-01-09 | C19: Tallinn | D19: Grimbold | E19: 6 | F19: 1149 | G19: 6894
B20: 2015-01-10 | C20: Pärnu | D20: Rohan | E20: 4 | F20: 340 | G20: 1360
B21: 2015-01-10 | C21: Pärnu | D21: Elend | E21: 1 | F21: 920 | G21: 920
B22: 2015-01-10 | C22: Tartu | D22: Sauron | E22: 2 | F22: 339 | G22: 678
B23: 2015-01-11 | C23: Tartu | D23: Balrog | E23: 2 | F23: 419 | G23: 838
B24: 2015-01-11 | C24: Tallinn | D24: Marvin | E24: 1 | F24: 370 | G24: 370
B25: 2015-01-11 | C25: Valga | D25: Aragorn | E25: 1 | F25: 499 | G25: 499
B26: 2015-01-14 | C26: Tartu | D26: Frodo | E26: 4 | F26: 870 | G26: 3480
B27: 2015-01-14 | C27: Pärnu | D27: Gandalf | E27: 3 | F27: 849 | G27: 2547
B28: 2015-01-14 | C28: Valga | D28: Kalvar | E28: 2 | F28: 699 | G28: 1398
B29: 2015-01-16 | C29: Tallinn | D29: Arven | E29: 5 | F29: 369 | G29: 1845
B30: 2015-01-17 | C30: Tallinn | D30: Kalvar | E30: 7 | F30: 699 | G30: 4893
B31: 2015-01-17 | C31: Tartu | D31: Aragorn | E31: 3 | F31: 499 | G31: 1497
B32: 2015-01-18 | C32: Tallinn | D32: Aragorn | E32: 1 | F32: 499 | G32: 499
B33: 2015-01-18 | C33: Pärnu | D33: Eldar | E33: 1 | F33: 465 | G33: 465
B34: 2015-01-19 | C34: Võru | D34: Elend | E34: 5 | F34: 920 | G34: 4600
B35: 2015-01-19 | C35: Tallinn | D35: Faram | E35: 3 | F35: 599 | G35: 1797
B36: 2015-01-19 | C36: Tartu | D36: Kalvar | E36: 1 | F36: 699 | G36: 699
B37: 2015-01-20 | C37: Tallinn | D37: Elend | E37: 2 | F37: 920 | G37: 1840
B38: 2015-01-20 | C38: Võru | D38: Sauron | E38: 3 | F38: 339 | G38: 1017
B39: 2015-01-21 | C39: Pärnu | D39: Arven | E39: 1 | F39: 369 | G39: 369
B40: 2015-01-25 | C40: Võru | D40: Sauron | E40: 1 | F40: 339 | G40: 339
B41: 2015-01-26 | C41: Pärnu | D41: Gandalf | E41: 2 | F41: 849 | G41: 1698

Sheet Töötajad
B3: Töötajad
B4: sortimine | C4: autofilter | D4: arend. filter | E4: risttabel
B6: Isikukood | C6: Eesnimi | D6: Perenimi | E6: Sugu | F6: Sugu2 | G6: Sünniaeg | H6: Vanus | I6: Osakond | J6: Amet | K6: Palk
B7: 38502110722 | C7: Karl | D7: Agur | E7: mees | F7: mees | G7: =DATE(MID(B7,2,2),MID(B7,4,2),MID(B7,6,2)) -> 1985-02-11 | H7: =INT((TODAY()-G7)/365.25) -> 31 | I7: Tootmine | J7: tööline | K7: 870
B8: 48704250911 | C8: Helen | D8: Aigro | E8: naine | F8: naine | G8: 1987-04-25 | H8: 29 | I8: Müük | J8: sekretär | K8: 570
B9: 36405130719 | C9: Erki | D9: Ainsaar | E9: mees | F9: mees | G9: 1964-05-13 | H9: 52 | I9: Tootmine | J9: lukksepp | K9: 1200
B10: 46605150941 | C10: Maarja | D10: Ambros | E10: naine | F10: naine | G10: 1966-05-15 | H10: 50 | I10: Ost | J10: sekretäär | K10: 950
B11: 34708140585 | C11: Erki | D11: Arsenov | E11: mees | F11: mees | G11: 1947-08-14 | H11: 69 | I11: Ladu | J11: kompekteerija | K11: 690
B12: 45711080030 | C12: Kristel | D12: Astok | E12: naine | F12: naine | G12: 1957-11-08 | H12: 58 | I12: Finants | J12: raamatupidaja | K12: 850
B13: 47110070151 | C13: Erika | D13: Bachmann | E13: naine | F13: naine | G13: 1971-10-07 | H13: 44 | I13: Müük | J13: müügijuht | K13: 900
B14: 35404050446 | C14: Reijo | D14: Bauman | E14: mees | F14: mees | G14: 1954-04-05 | H14: 62 | I14: Tootmine | J14: tööline | K14: 700
B15: 44203130136 | C15: Mirja | D15: Bergmann | E15: naine | F15: naine | G15: 1942-03-13 | H15: 74 | I15: Majandus | J15: koristaja | K15: 1270
B16: 47110060467 | C16: Elvi | D16: Berk | E16: naine | F16: naine | G16: 1971-10-06 | H16: 44 | I16: Transport | J16: dispetser | K16: 640
B17: 34404190222 | C17: Kaivo | D17: Berk | E17: mees | F17: mees | G17: 1944-04-19 | H17: 72 | I17: Ladu | J17: tööline | K17: 510
B18: 33904050217 | C18: Olav | D18: Berk | E18: mees | F18: mees | G18: 1939-04-05 | H18: 77 | I18: Tootmine | J18: tööline | K18: 580
B19: 47102200902 | C19: Ene | D19: Burmeister | E19: naine | F19: naine | G19: 1971-02-20 | H19: 45 | I19: Finants | J19: raamatupidaja | K19: 710
B20: 38302070214 | C20: Priit | D20: Burmeister | E20: mees | F20: mees | G20: 1983-02-07 | H20: 33 | I20: Transport | J20: autojuht | K20: 770
B21: 36802240722 | C21: Ahto | D21: Danilov | E21: mees | F21: mees | G21: 1968-02-24 | H21: 48 | I21: Transport | J21: autojuht | K21: 910
B22: 48007150516 | C22: Erna | D22: Eek | E22: naine | F22: naine | G22: 1980-07-15 | H22: 36 | I22: Tootmine | J22: tööline | K22: 550
B23: 48305030944 | C23: Laine | D23: Eek | E23: naine | F23: naine | G23: 1983-05-03 | H23: 33 | I23: Majandus | J23: sekretär | K23: 510
B24: 47302150417 | C24: Mare | D24: Eesmaa | E24: naine | F24: naine | G24: 1973-02-15 | H24: 43 | I24: Majandus | J24: juhataja | K24: 1690
B25: 47311270496 | C25: Vilma | D25: Eesmaa | E25: naine | F25: naine | G25: 1973-11-27 | H25: 42 | I25: Finants | J25: raamatupidaja | K25: 770
B26: 34103030178 | C26: Einar | D26: Ehala | E26: mees | F26: mees | G26: 1941-03-03 | H26: 75 | I26: Tootmine | J26: treial | K26: 680
B27: 47110240441 | C27: Ene | D27: Elmik | E27: naine | F27: naine | G27: 1971-10-24 | H27: 44 | I27: Müük | J27: müügijuht | K27: 850
B28: 36110090988 | C28: Aadu | D28: Elson | E28: mees | F28: mees | G28: 1961-10-09 | H28: 54 | I28: Tootmine | J28: tööline | K28: 750
B29: 34110060017 | C29: Marko | D29: Erikson | E29: mees | F29: mees | G29: 1941-10-06 | H29: 74 | I29: Tootmine | J29: meister | K29: 920
B30: 38205190379 | C30: Aadu | D30: Heinlo | E30: mees | F30: mees | G30: 1982-05-19 | H30: 34 | I30: Tootmine | J30: lukksepp | K30: 570
B31: 46809210954 | C31: Aigi | D31: Härm | E31: naine | F31: naine | G31: 1968-09-21 | H31: 47 | I31: Ost | J31: sekretär | K31: 720
B32: 44311130888 | C32: Sirje | D32: Härm | E32: naine | F32: naine | G32: 1943-11-13 | H32: 72 | I32: Ost | J32: sekretär | K32: 570
B33: 44111240925 | C33: Leida | D33: Jaanus | E33: naine | F33: naine | G33: 1941-11-24 | H33: 74 | I33: Tootmine | J33: tööline | K33: 640
B34: 37002030149 | C34: Kristjan | D34: Jürimäe | E34: mees | F34: mees | G34: 1970-02-03 | H34: 46 | I34: Tootmine | J34: lukksepp | K34: 850
B35: 46809170171 | C35: Jana | D35: Kaal | E35: naine | F35: naine | G35: 1968-09-17 | H35: 47 | I35: Müük | J35: sekretär | K35: 570
B36: 34906210936 | C36: Jaan | D36: Kaasik | E36: mees | F36: mees | G36: 1949-06-21 | H36: 67 | I36: Transport | J36: autojuht | K36: 730
B37: 38301080820 | C37: Meelis | D37: Kalju | E37: mees | F37: mees | G37: 1983-01-08 | H37: 33 | I37: Ladu | J37: tööline | K37: 510
B38: 34107110230 | C38: Hendrik | D38: Kanter | E38: mees | F38: mees | G38: 1941-07-11 | H38: 75 | I38: Tootmine | J38: juhataja | K38: 2180
B39: 48801180808 | C39: Erika | D39: Kasemets | E39: naine | F39: naine | G39: =DATE(MID(B39,2,2),MID(B39,4,2),MID(B39,6,2)) -> 1988-01-18 | H39: =INT((TODAY()-G39)/365.25) -> 28 | I39: Müük | J39: sekretär | K39: 650
B40: 46908050804 | C40: Malle | D40: Kivioja | E40: naine | F40: naine | G40: 1969-08-05 | H40: 47 | I40: Finants | J40: juhataja | K40: 2430
B41: 36009040214 | C41: Andrus | D41: Koort | E41: mees | F41: mees | G41: 1960-09-04 | H41: 56 | I41: Tootmine | J41: treial | K41: 770
B42: 44406270104 | C42: Sirje | D42: Kreen | E42: naine | F42: naine | G42: 1944-06-27 | H42: 72 | I42: Tootmine | J42: tööline | K42: 975
B43: 48210210529 | C43: Faina | D43: Kukk | E43: naine | F43: naine | G43: 1982-10-21 | H43: 33 | I43: Müük | J43: sekretär | K43: 580
B44: 33907250511 | C44: Riho | D44: Kuusk | E44: mees | F44: mees | G44: 1939-07-25 | H44: 77 | I44: Tootmine | J44: tööline | K44: 690
B45: 37509120658 | C45: Boris | D45: Küünemäe | E45: mees | F45: mees | G45: 1975-09-12 | H45: 40 | I45: Transport | J45: autojuht | K45: 650
B46: 36008130050 | C46: Einar | D46: Laanepõld | E46: mees | F46: mees | G46: 1960-08-13 | H46: 56 | I46: Ladu | J46: tööline | K46: 500
B47: 37803090504 | C47: Jaan | D47: Laubre | E47: mees | F47: mees | G47: 1978-03-09 | H47: 38 | I47: Finants | J47: raamatupidaja | K47: 850
B48: 37005020007 | C48: Erki | D48: Lepiksoo | E48: mees | F48: mees | G48: 1970-05-02 | H48: 46 | I48: Tootmine | J48: treial | K48: 790
B49: 47010010868 | C49: Faina | D49: Lepp | E49: naine | F49: naine | G49: 1970-10-01 | H49: 45 | I49: Finants | J49: jurist | K49: 1570
B50: 45604030496 | C50: Malle | D50: Ligi | E50: naine | F50: naine | G50: 1956-04-03 | H50: 60 | I50: Finants | J50: jurist | K50: 1510
B51: 47005130963 | C51: Heli | D51: Lind | E51: naine | F51: naine | G51: 1970-05-13 | H51: 46 | I51: Tootmine | J51: tööline | K51: 500
B52: 38201060031 | C52: Raivo | D52: Lokk | E52: mees | F52: mees | G52: 1982-01-06 | H52: 34 | I52: Tootmine | J52: tööline | K52: 650
B53: 35105180673 | C53: Eino | D53: Luige | E53: mees | F53: mees | G53: 1951-05-18 | H53: 65 | I53: Tootmine | J53: tööline | K53: 510
B54: 34309100049 | C54: Madis | D54: Maasalu | E54: mees | F54: mees | G54: 1943-09-10 | H54: 72 | I54: Tootmine | J54: tööline | K54: 720
B55: 35009030894 | C55: Margus | D55: Maasalu | E55: mees | F55: mees | G55: 1950-09-03 | H55: 66 | I55: Tootmine | J55: tööline | K55: 710
B56: 35809050610 | C56: Aadu | D56: Malva | E56: mees | F56: mees | G56: 1958-09-05 | H56: 58 | I56: Transport | J56: autojuht | K56: 790
B57: 48208230166 | C57: Tiina | D57: Markus | E57: naine | F57: naine | G57: 1982-08-23 | H57: 34 | I57: Ladu | J57: tööline | K57: 500
B58: 34408020335 | C58: Aare | D58: Marmor | E58: mees | F58: mees | G58: 1944-08-02 | H58: 72 | I58: Tootmine | J58: meister | K58: 950
B59: 34506190557 | C59: Reijo | D59: Meigas | E59: mees | F59: mees | G59: 1945-06-19 | H59: 71 | I59: Ladu | J59: tööline | K59: 640
B60: 34112180084 | C60: Anton | D60: Meister | E60: mees | F60: mees | G60: 1941-12-18 | H60: 74 | I60: Ladu | J60: juhataja | K60: 1510
B61: 35408240148 | C61: Arnold | D61: Merilaid | E61: mees | F61: mees | G61: 1954-08-24 | H61: 62 | I61: Transport | J61: autojuht | K61: 630
B62: 36203030988 | C62: Kaivo | D62: Mets | E62: mees | F62: mees | G62: 1962-03-03 | H62: 54 | I62: Tootmine | J62: meister | K62: 920
B63: 37303030624 | C63: Aarne | D63: Mikson | E63: mees | F63: mees | G63: 1973-03-03 | H63: 43 | I63: Ost | J63: juhataja | K63: 1970
B64: 48109130038 | C64: Kersti | D64: Miller | E64: naine | F64: naine | G64: 1981-09-13 | H64: 34 | I64: Tootmine | J64: tööline | K64: 570
B65: 37003260243 | C65: Reijo | D65: Muld | E65: mees | F65: mees | G65: 1970-03-26 | H65: 46 | I65: Tootmine | J65: tööline | K65: 790
B66: 45903030319 | C66: Valve | D66: Mäesalu | E66: naine | F66: naine | G66: 1959-03-03 | H66: 57 | I66: Ost | J66: sekretär | K66: 750
B67: 37906080465 | C67: Kristjan | D67: Mägi | E67: mees | F67: mees | G67: 1979-06-08 | H67: 37 | I67: Müük | J67: diiler | K67: 730
B68: 36709040675 | C68: Tarmo | D68: Müller | E68: mees | F68: mees | G68: 1967-09-04 | H68: 49 | I68: Müük | J68: müügijuht | K68: 1390
B69: 35104120460 | C69: Reijo | D69: Müürsepp | E69: mees | F69: mees | G69: 1951-04-12 | H69: 65 | I69: Tootmine | J69: lukksepp | K69: 770
B70: 36512210549 | C70: Paul | D70: Naaber | E70: mees | F70: mees | G70: 1965-12-21 | H70: 50 | I70: Transport | J70: autojuht | K70: 700
B71: 38303010526 | C71: Jaan | D71: Noormets | E71: mees | F71: mees | G71: =DATE(MID(B71,2,2),MID(B71,4,2),MID(B71,6,2)) -> 1983-03-01 | H71: =INT((TODAY()-G71)/365.25) -> 33 | I71: Müük | J71: diiler | K71: 770
B72: 36406070555 | C72: Aarne | D72: Norak | E72: mees | F72: mees | G72: 1964-06-07 | H72: 52 | I72: Tootmine | J72: tööline | K72: 620
B73: 38008200347 | C73: Arnold | D73: Norak | E73: mees | F73: mees | G73: 1980-08-20 | H73: 36 | I73: Tootmine | J73: tööline | K73: 710
B74: 37708220891 | C74: Ando | D74: Nõmmik | E74: mees | F74: mees | G74: 1977-08-22 | H74: 39 | I74: Transport | J74: autojuht | K74: 770
B75: 35001130124 | C75: Aarne | D75: Oks | E75: mees | F75: mees | G75: 1950-01-13 | H75: 66 | I75: Transport | J75: autojuht | K75: 700
B76: 45809140289 | C76: Kristiina | D76: Oks | E76: naine | F76: naine | G76: 1958-09-14 | H76: 57 | I76: Transport | J76: dispetser | K76: 630
B77: 38206070961 | C77: Reijo | D77: Okspuu | E77: mees | F77: mees | G77: 1982-06-07 | H77: 34 | I77: Müük | J77: diiler | K77: 650
B78: 48105090295 | C78: Annika | D78: Paju | E78: naine | F78: naine | G78: 1981-05-09 | H78: 35 | I78: Majandus | J78: sekretär | K78: 510
B79: 38005180669 | C79: Hanno | D79: Pajusaar | E79: mees | F79: mees | G79: 1980-05-18 | H79: 36 | I79: Tootmine | J79: tööline | K79: 760
B80: 46709190988 | C80: Selma | D80: Parre | E80: naine | F80: naine | G80: 1967-09-19 | H80: 48 | I80: Ladu | J80: tööline | K80: 710
B81: 37612170754 | C81: Eevald | D81: Parts | E81: mees | F81: mees | G81: 1976-12-17 | H81: 39 | I81: Tootmine | J81: lukksepp | K81: 860
B82: 37308230939 | C82: Madis | D82: Paulus | E82: mees | F82: mees | G82: 1973-08-23 | H82: 43 | I82: Tootmine | J82: tööline | K82: 750
B83: 36907260696 | C83: Hanno | D83: Pedak | E83: mees | F83: mees | G83: 1969-07-26 | H83: 47 | I83: Transport | J83: autojuht | K83: 710
B84: 38211130833 | C84: Meelis | D84: Petrov | E84: mees | F84: mees | G84: 1982-11-13 | H84: 33 | I84: Tootmine | J84: tööline | K84: 570
B85: 47508150058 | C85: Irma | D85: Piirsalu | E85: naine | F85: naine | G85: 1975-08-15 | H85: 41 | I85: Tootmine | J85: tööline | K85: 700
B86: 34204170615 | C86: Aadu | D86: Pulk | E86: mees | F86: mees | G86: 1942-04-17 | H86: 74 | I86: Transport | J86: valvur | K86: 450
B87: 45710100356 | C87: Airi | D87: Põld | E87: naine | F87: naine | G87: 1957-10-10 | H87: 58 | I87: Ladu | J87: kompekteerija | K87: 770
B88: 45902200391 | C88: Evelin | D88: Põld | E88: naine | F88: naine | G88: 1959-02-20 | H88: 57 | I88: Majandus | J88: sekretär | K88: 640
B89: 46307080393 | C89: Malle | D89: Põldmaa | E89: naine | F89: naine | G89: 1963-07-08 | H89: 53 | I89: Tootmine | J89: tööline | K89: 650
B90: 47605040659 | C90: Hilja | D90: Raid | E90: naine | F90: naine | G90: 1976-05-04 | H90: 40 | I90: Müük | J90: sekretär | K90: 640
B91: 47111150090 | C91: Tiina | D91: Rajamäe | E91: naine | F91: naine | G91: 1971-11-15 | H91: 44 | I91: Transport | J91: dispetser | K91: 710
B92: 44012150956 | C92: Aasa | D92: Randla | E92: naine | F92: naine | G92: 1940-12-15 | H92: 75 | I92: Majandus | J92: koristaja | K92: 480
B93: 38104220473 | C93: Aare | D93: Raudsepp | E93: mees | F93: mees | G93: 1981-04-22 | H93: 35 | I93: Müük | J93: diiler | K93: 700
B94: 37111200348 | C94: Margus | D94: Roosimägi | E94: mees | F94: mees | G94: 1971-11-20 | H94: 44 | I94: Transport | J94: autojuht | K94: 910
B95: 34811280456 | C95: Argo | D95: Salu | E95: mees | F95: mees | G95: 1948-11-28 | H95: 67 | I95: Tootmine | J95: tööline | K95: 770
B96: 34810190405 | C96: Karl | D96: Salu | E96: mees | F96: mees | G96: 1948-10-19 | H96: 67 | I96: Ladu | J96: dispetser | K96: 660
B97: 37105220288 | C97: Kustav | D97: Salu | E97: mees | F97: mees | G97: 1971-05-22 | H97: 45 | I97: Tootmine | J97: tööline | K97: 770
B98: 37006180544 | C98: Erno | D98: Salumets | E98: mees | F98: mees | G98: 1970-06-18 | H98: 46 | I98: Müük | J98: juhataja | K98: 2430
B99: 44607080463 | C99: Evi | D99: Sarapik | E99: naine | F99: naine | G99: 1946-07-08 | H99: 70 | I99: Finants | J99: raamatupidaja | K99: 850
B100: 44601210234 | C100: Tiina | D100: Toomsalu | E100: naine | F100: naine | G100: 1946-01-21 | H100: 70 | I100: Majandus | J100: koristaja | K100: 430
B101: 35901050084 | C101: Ahti | D101: Tubin | E101: mees | F101: mees | G101: 1959-01-05 | H101: 57 | I101: Tootmine | J101: treial | K101: 900
B102: 45209010485 | C102: Juulia | D102: Tubin | E102: naine | F102: naine | G102: 1952-09-01 | H102: 64 | I102: Müük | J102: sekretär | K102: 570
B103: 35312110930 | C103: Kaspar | D103: Veesimaa | E103: mees | F103: mees | G103: 1953-12-11 | H103: =INT((TODAY()-G103)/365.25) -> 62 | I103: Tootmine | J103: tööline | K103: 580
B104: 46404170054 | C104: Katy | D104: Veesimaa | E104: naine | F104: naine | G104: 1964-04-17 | H104: 52 | I104: Finants | J104: referent | K104: 650
B105: 36504060863 | C105: Arvi | D105: Väljas | E105: mees | F105: mees | G105: 1965-04-06 | H105: 51 | I105: Tootmine | J105: tööline | K105: 580

Sheet P_Müügid
B2: Puidu müük | D2: AS Karu & Pojad | H2: =YEAR(C9) -> 2015 | K2: P-abi
B4: sortimine | C4: autofilter | D4: arend. filter | E4: vahekokkuv. | F4: risttabel | G4: SumIF
G6: Kokku | I6: =SUM(P_kogus) -> 17099 | K6: =SUM(P_maks) -> 1121210
B8: P_arve | C8: P_kuupäev | D8: P_ostja | E8: P_maa | F8: P_liik | G8: P_sort | H8: P_müüja | I8: P_kogus | J8: P_hind | K8: P_maks | L8: P_kuu
B9: P001 | C9: 2015-01-02 | D9: Seen | E9: =VLOOKUP(P_ostja, o_tab, 2, 0) -> Võru | F9: mänd | G9: 2 | H9: Siil | I9: 28 | J9: =VLOOKUP(P_liik, P_hinnad, P_sort+1, 0) -> 68 | K9: =P_hind * P_kogus -> 1904 | L9: =MONTH(P_kuupäev) -> 1
B10: P002 | C10: 2015-01-03 | D10: Haab | E10: Pärnu | F10: kask | G10: 1 | H10: Karu | I10: 75 | J10: 70 | K10: 5250 | L10: 1
B11: P002 | C11: 2015-01-03 | D11: Haab | E11: Pärnu | F11: vaher | G11: 1 | H11: Karu | I11: 10 | J11: 95 | K11: 950 | L11: 1
B12: P003 | C12: 2015-01-03 | D12: Seen | E12: Võru | F12: lepp | G12: 2 | H12: Karu | I12: 13 | J12: 59 | K12: 767 | L12: 1
B13: P004 | C13: 2015-01-04 | D13: Karu | E13: Lääne | F13: küte | G13: 1 | H13: Siil | I13: 12 | J13: 47 | K13: 564 | L13: 1
B14: P004 | C14: 2015-01-04 | D14: Karu | E14: Lääne | F14: vaher | G14: 1 | H14: Siil | I14: 39 | J14: 95 | K14: 3705 | L14: 1
B15: P005 | C15: 2015-01-06 | D15: Seen | E15: Võru | F15: küte | G15: 1 | H15: Põder | I15: 44 | J15: 47 | K15: 2068 | L15: 1
B16: P006 | C16: 2015-01-06 | D16: Juur | E16: Pärnu | F16: mänd | G16: 2 | H16: Rebane | I16: 37 | J16: 68 | K16: 2516 | L16: 1
B17: P007 | C17: 2015-01-07 | D17: Lind | E17: Valga | F17: kuusk | G17: 2 | H17: Jänes | I17: 11 | J17: 72 | K17: 792 | L17: 1
B18: P008 | C18: 2015-01-07 | D18: Vaher | E18: Rapla | F18: saar | G18: 3 | H18: Hunt | I18: 23 | J18: 68 | K18: 1564 | L18: 1
B19: P009 | C19: 2015-01-08 | D19: Mänd | E19: Harju | F19: küte | G19: 1 | H19: Jänes | I19: 45 | J19: 47 | K19: 2115 | L19: 1
B20: P010 | C20: 2015-01-09 | D20: Karu | E20: Lääne | F20: küte | G20: 2 | H20: Hunt | I20: 6 | J20: 42 | K20: 252 | L20: 1
B21: P010 | C21: 2015-01-09 | D21: Karu | E21: Lääne | F21: mänd | G21: 1 | H21: Hunt | I21: 55 | J21: 75 | K21: 4125 | L21: 1
B22: P010 | C22: 2015-01-09 | D22: Karu | E22: Lääne | F22: mänd | G22: 2 | H22: Hunt | I22: 39 | J22: 68 | K22: 2652 | L22: 1
B23: P011 | C23: 2015-01-11 | D23: Lepp | E23: Viljandi | F23: kuusk | G23: 1 | H23: Karu | I23: 24 | J23: 80 | K23: 1920 | L23: 1
B24: P011 | C24: 2015-01-11 | D24: Lepp | E24: Viljandi | F24: vaher | G24: 3 | H24: Jänes | I24: 16 | J24: 76 | K24: 1216 | L24: 1
B25: P012 | C25: 2015-01-12 | D25: Lepik | E25: Paide | F25: küte | G25: 1 | H25: Jänes | I25: 71 | J25: 47 | K25: 3337 | L25: 1
B26: P013 | C26: 2015-01-13 | D26: Vares | E26: Rapla | F26: küte | G26: 2 | H26: Jänes | I26: 25 | J26: 42 | K26: 1050 | L26: 1
B27: P013 | C27: 2015-01-13 | D27: Vares | E27: Rapla | F27: küte | G27: 1 | H27: Jänes | I27: 22 | J27: 47 | K27: 1034 | L27: 1
B28: P013 | C28: 2015-01-13 | D28: Vares | E28: Rapla | F28: tamm | G28: 1 | H28: Jänes | I28: 28 | J28: 110 | K28: 3080 | L28: 1
B29: P014 | C29: 2015-01-14 | D29: Kask | E29: Pärnu | F29: mänd | G29: 1 | H29: Siil | I29: 40 | J29: 75 | K29: 3000 | L29: 1
B30: P014 | C30: 2015-01-14 | D30: Kask | E30: Pärnu | F30: saar | G30: 1 | H30: Siil | I30: 17 | J30: 85 | K30: 1445 | L30: 1
B31: P015 | C31: 2015-01-16 | D31: Varblane | E31: Harju | F31: haab | G31: 3 | H31: Hunt | I31: 17 | J31: 40 | K31: 680 | L31: 1
B32: P015 | C32: 2015-01-16 | D32: Varblane | E32: Harju | F32: saar | G32: 1 | H32: Hunt | I32: 40 | J32: 85 | K32: 3400 | L32: 1
B33: P015 | C33: 2015-01-16 | D33: Varblane | E33: Harju | F33: vaher | G33: 1 | H33: Hunt | I33: 27 | J33: 95 | K33: 2565 | L33: 1
B34: P016 | C34: 2015-01-17 | D34: Ilves | E34: Lääne | F34: kask | G34: 1 | H34: Hunt | I34: 13 | J34: 70 | K34: 910 | L34: 1
B35: P016 | C35: 2015-01-17 | D35: Ilves | E35: Lääne | F35: tamm | G35: 2 | H35: Hunt | I35: 31 | J35: 99 | K35: 3069 | L35: 1
B36: P017 | C36: 2015-01-18 | D36: Paju | E36: Võru | F36: kask | G36: 1 | H36: Põder | I36: 50 | J36: 70 | K36: 3500 | L36: 1
B37: P018 | C37: 2015-01-19 | D37: Pihel | E37: Rapla | F37: kuusk | G37: 3 | H37: Siil | I37: 52 | J37: 64 | K37: 3328 | L37: 1
B38: P019 | C38: 2015-01-20 | D38: Seen | E38: Võru | F38: saar | G38: 1 | H38: Hunt | I38: 69 | J38: 85 | K38: 5865 | L38: 1
B39: P020 | C39: 2015-01-23 | D39: Kaun | E39: Pärnu | F39: küte | G39: 1 | H39: Põder | I39: 48 | J39: 47 | K39: 2256 | L39: 1
B40: P021 | C40: 2015-01-24 | D40: Seen | E40: Võru | F40: küte | G40: 2 | H40: Jänes | I40: 45 | J40: 42 | K40: 1890 | L40: 1
B41: P021 | C41: 2015-01-24 | D41: Seen | E41: Võru | F41: mänd | G41: 1 | H41: Jänes | I41: 73 | J41: 75 | K41: 5475 | L41: 1
B42: P022 | C42: 2015-01-25 | D42: Kuusik | E42: Viljandi | F42: kask | G42: 1 | H42: Karu | I42: 23 | J42: 70 | K42: 1610 | L42: 1
B43: P022 | C43: 2015-01-25 | D43: Kuusik | E43: Viljandi | F43: kask | G43: 1 | H43: Karu | I43: 16 | J43: 70 | K43: 1120 | L43: 1
B44: P022 | C44: 2015-01-25 | D44: Kuusik | E44: Viljandi | F44: küte | G44: 2 | H44: Karu | I44: 20 | J44: 42 | K44: 840 | L44: 1
B45: P023 | C45: 2015-01-25 | D45: Kuusik | E45: Viljandi | F45: kuusk | G45: 1 | H45: Jänes | I45: 24 | J45: 80 | K45: 1920 | L45: 1
B46: P024 | C46: 2015-01-27 | D46: Lepp | E46: Viljandi | F46: tamm | G46: 2 | H46: Karu | I46: 51 | J46: 99 | K46: 5049 | L46: 1
B47: P025 | C47: 2015-01-27 | D47: Lepp | E47: Viljandi | F47: kuusk | G47: 1 | H47: Siil | I47: 15 | J47: 80 | K47: 1200 | L47: 1
B48: P026 | C48: 2015-01-28 | D48: Känd | E48: Harju | F48: tamm | G48: 2 | H48: Siil | I48: 11 | J48: 99 | K48: 1089 | L48: 1
B49: P027 | C49: 2015-01-30 | D49: Tuvi | E49: Harju | F49: küte | G49: 1 | H49: Siil | I49: 27 | J49: 47 | K49: 1269 | L49: 1
B50: P028 | C50: 2015-01-31 | D50: Kask | E50: Pärnu | F50: haab | G50: 2 | H50: Ilves | I50: 46 | J50: 45 | K50: 2070 | L50: 1
B51: P028 | C51: 2015-01-31 | D51: Kask | E51: Pärnu | F51: kuusk | G51: 1 | H51: Ilves | I51: 40 | J51: 80 | K51: 3200 | L51: 1
B52: P029 | C52: 2015-02-01 | D52: Lind | E52: Valga | F52: kask | G52: 3 | H52: Karu | I52: 75 | J52: 56 | K52: 4200 | L52: 2
B53: P030 | C53: 2015-02-01 | D53: Lind | E53: Valga | F53: haab | G53: 2 | H53: Põder | I53: 44 | J53: 45 | K53: 1980 | L53: 2
B54: P031 | C54: 2015-02-02 | D54: Karu | E54: Lääne | F54: mänd | G54: 1 | H54: Jänes | I54: 53 | J54: 75 | K54: 3975 | L54: 2
B55: P032 | C55: 2015-02-03 | D55: Ilves | E55: Lääne | F55: vaher | G55: 2 | H55: Karu | I55: 26 | J55: 86 | K55: 2236 | L55: 2
B56: P033 | C56: 2015-02-04 | D56: Vaher | E56: Rapla | F56: kuusk | G56: 3 | H56: Karu | I56: 66 | J56: 64 | K56: 4224 | L56: 2
B57: P034 | C57: 2015-02-05 | D57: Lepik | E57: Paide | F57: mänd | G57: 1 | H57: Siil | I57: 30 | J57: 75 | K57: 2250 | L57: 2
B58: P034 | C58: 2015-02-05 | D58: Lepik | E58: Paide | F58: tamm | G58: 1 | H58: Siil | I58: 15 | J58: 110 | K58: 1650 | L58: 2
B59: P035 | C59: 2015-02-12 | D59: Kask | E59: Pärnu | F59: lepp | G59: 1 | H59: Karu | I59: 53 | J59: 65 | K59: 3445 | L59: 2
B60: P036 | C60: 2015-02-13 | D60: Luik | E60: Viljandi | F60: kuusk | G60: 3 | H60: Karu | I60: 72 | J60: 64 | K60: 4608 | L60: 2
B61: P036 | C61: 2015-02-13 | D61: Luik | E61: Viljandi | F61: lepp | G61: 1 | H61: Ilves | I61: 53 | J61: 65 | K61: 3445 | L61: 2
B62: P037 | C62: 2015-02-17 | D62: Kuusik | E62: Viljandi | F62: haab | G62: 2 | H62: Jänes | I62: 32 | J62: 45 | K62: 1440 | L62: 2
B63: P038 | C63: 2015-02-18 | D63: Kask | E63: Pärnu | F63: mänd | G63: 1 | H63: Ilves | I63: 36 | J63: 75 | K63: 2700 | L63: 2
B64: P038 | C64: 2015-02-18 | D64: Kask | E64: Pärnu | F64: tamm | G64: 1 | H64: Ilves | I64: 14 | J64: 110 | K64: 1540 | L64: 2
B65: P038 | C65: 2015-02-18 | D65: Kask | E65: Pärnu | F65: vaher | G65: 3 | H65: Ilves | I65: 78 | J65: 76 | K65: 5928 | L65: 2
B66: P039 | C66: 2015-02-18 | D66: Lepik | E66: Paide | F66: kask | G66: 3 | H66: Hunt | I66: 62 | J66: 56 | K66: 3472 | L66: 2
B67: P040 | C67: 2015-02-19 | D67: Saar | E67: Valga | F67: kuusk | G67: 1 | H67: Jänes | I67: 22 | J67: 80 | K67: 1760 | L67: 2
B68: P041 | C68: 2015-02-20 | D68: Mänd | E68: Harju | F68: mänd | G68: 1 | H68: Siil | I68: 74 | J68: 75 | K68: 5550 | L68: 2
B69: P042 | C69: 2015-02-21 | D69: Mänd | E69: Harju | F69: haab | G69: 3 | H69: Põder | I69: 26 | J69: 40 | K69: 1040 | L69: 2
B70: P042 | C70: 2015-02-21 | D70: Mänd | E70: Harju | F70: saar | G70: 1 | H70: Põder | I70: 49 | J70: 85 | K70: 4165 | L70: 2
B71: P043 | C71: 2015-02-22 | D71: Seen | E71: Võru | F71: saar | G71: 2 | H71: Hunt | I71: 24 | J71: 77 | K71: 1848 | L71: 2
B72: P044 | C72: 2015-02-25 | D72: Juur | E72: Pärnu | F72: kask | G72: 1 | H72: Hunt | I72: 37 | J72: 70 | K72: 2590 | L72: 2
B73: P044 | C73: 2015-02-25 | D73: Juur | E73: =VLOOKUP(P_ostja, o_tab, 2, 0) -> Pärnu | F73: mänd | G73: 3 | H73: Hunt | I73: 33 | J73: =VLOOKUP(P_liik, P_hinnad, P_sort+1, 0) -> 60 | K73: =P_hind * P_kogus -> 1980 | L73: =MONTH(P_kuupäev) -> 2
B74: P045 | C74: 2015-02-26 | D74: Vaher | E74: Rapla | F74: kask | G74: 1 | H74: Hunt | I74: 35 | J74: 70 | K74: 2450 | L74: 2
B75: P046 | C75: 2015-02-27 | D75: Varblane | E75: Harju | F75: kask | G75: 1 | H75: Rebane | I75: 34 | J75: 70 | K75: 2380 | L75: 2
B76: P047 | C76: 2015-02-27 | D76: Kuusik | E76: Viljandi | F76: küte | G76: 2 | H76: Hunt | I76: 28 | J76: 42 | K76: 1176 | L76: 2
B77: P048 | C77: 2015-02-28 | D77: Seen | E77: Võru | F77: lepp | G77: 3 | H77: Siil | I77: 23 | J77: 52 | K77: 1196 | L77: 2
B78: P049 | C78: 2015-03-01 | D78: Varblane | E78: Harju | F78: kask | G78: 1 | H78: Siil | I78: 73 | J78: 70 | K78: 5110 | L78: 3
B79: P050 | C79: 2015-03-01 | D79: Kaun | E79: Pärnu | F79: lepp | G79: 1 | H79: Ilves | I79: 65 | J79: 65 | K79: 4225 | L79: 3
B80: P051 | C80: 2015-03-02 | D80: Lepik | E80: Paide | F80: saar | G80: 3 | H80: Karu | I80: 63 | J80: 68 | K80: 4284 | L80: 3
B81: P052 | C81: 2015-03-02 | D81: Lepik | E81: Paide | F81: lepp | G81: 3 | H81: Ilves | I81: 65 | J81: 52 | K81: 3380 | L81: 3
B82: P053 | C82: 2015-03-02 | D82: Lepp | E82: Viljandi | F82: haab | G82: 1 | H82: Karu | I82: 27 | J82: 50 | K82: 1350 | L82: 3
B83: P053 | C83: 2015-03-02 | D83: Lepp | E83: Viljandi | F83: vaher | G83: 1 | H83: Hunt | I83: 11 | J83: 95 | K83: 1045 | L83: 3
B84: P054 | C84: 2015-03-05 | D84: Lepp | E84: Viljandi | F84: küte | G84: 2 | H84: Karu | I84: 177 | J84: 42 | K84: 7434 | L84: 3
B85: P054 | C85: 2015-03-05 | D85: Lepp | E85: Viljandi | F85: lepp | G85: 2 | H85: Karu | I85: 37 | J85: 59 | K85: 2183 | L85: 3
B86: P055 | C86: 2015-03-06 | D86: Saar | E86: Valga | F86: mänd | G86: 2 | H86: Jänes | I86: 49 | J86: 68 | K86: 3332 | L86: 3
B87: P056 | C87: 2015-03-08 | D87: Saar | E87: Valga | F87: mänd | G87: 3 | H87: Rebane | I87: 28 | J87: 60 | K87: 1680 | L87: 3
B88: P057 | C88: 2015-03-08 | D88: Ilves | E88: Lääne | F88: haab | G88: 1 | H88: Siil | I88: 13 | J88: 50 | K88: 650 | L88: 3
B89: P057 | C89: 2015-03-08 | D89: Ilves | E89: Lääne | F89: mänd | G89: 2 | H89: Siil | I89: 22 | J89: 68 | K89: 1496 | L89: 3
B90: P058 | C90: 2015-03-11 | D90: Vaher | E90: Rapla | F90: haab | G90: 1 | H90: Hunt | I90: 59 | J90: 50 | K90: 2950 | L90: 3
B91: P058 | C91: 2015-03-11 | D91: Vaher | E91: Rapla | F91: kask | G91: 1 | H91: Hunt | I91: 25 | J91: 70 | K91: 1750 | L91: 3
B92: P058 | C92: 2015-03-11 | D92: Vaher | E92: Rapla | F92: kask | G92: 1 | H92: Hunt | I92: 11 | J92: 70 | K92: 770 | L92: 3
B93: P059 | C93: 2015-03-12 | D93: Varblane | E93: Harju | F93: haab | G93: 2 | H93: Põder | I93: 75 | J93: 45 | K93: 3375 | L93: 3
B94: P060 | C94: 2015-03-13 | D94: Varblane | E94: Harju | F94: lepp | G94: 2 | H94: Karu | I94: 46 | J94: 59 | K94: 2714 | L94: 3
B95: P061 | C95: 2015-03-15 | D95: Lepp | E95: Viljandi | F95: kuusk | G95: 3 | H95: Siil | I95: 23 | J95: 64 | K95: 1472 | L95: 3
B96: P062 | C96: 2015-03-18 | D96: Varblane | E96: Harju | F96: haab | G96: 2 | H96: Jänes | I96: 49 | J96: 45 | K96: 2205 | L96: 3
B97: P062 | C97: 2015-03-18 | D97: Varblane | E97: Harju | F97: haab | G97: 1 | H97: Jänes | I97: 36 | J97: 50 | K97: 1800 | L97: 3
B98: P062 | C98: 2015-03-18 | D98: Varblane | E98: Harju | F98: vaher | G98: 1 | H98: Jänes | I98: 27 | J98: 95 | K98: 2565 | L98: 3
B99: P063 | C99: 2015-03-19 | D99: Seen | E99: Võru | F99: kask | G99: 1 | H99: Siil | I99: 73 | J99: 70 | K99: 5110 | L99: 3
B100: P063 | C100: 2015-03-19 | D100: Seen | E100: Võru | F100: mänd | G100: 2 | H100: Siil | I100: 52 | J100: 68 | K100: 3536 | L100: 3
B101: P064 | C101: 2015-03-20 | D101: Juur | E101: Pärnu | F101: tamm | G101: 1 | H101: Rebane | I101: 35 | J101: 110 | K101: 3850 | L101: 3
B102: P064 | C102: 2015-03-20 | D102: Juur | E102: Pärnu | F102: vaher | G102: 2 | H102: Rebane | I102: 31 | J102: 86 | K102: 2666 | L102: 3
B103: P065 | C103: 2015-03-21 | D103: Lind | E103: Valga | F103: saar | G103: 3 | H103: Karu | I103: 18 | J103: 68 | K103: 1224 | L103: 3
B104: P066 | C104: 2015-03-22 | D104: Tuvi | E104: Harju | F104: saar | G104: 1 | H104: Karu | I104: 67 | J104: 85 | K104: 5695 | L104: 3
B105: P066 | C105: 2015-03-22 | D105: Tuvi | E105: Harju | F105: saar | G105: 1 | H105: Karu | I105: 52 | J105: 85 | K105: 4420 | L105: 3
B106: P067 | C106: 2015-03-23 | D106: Lind | E106: Valga | F106: kuusk | G106: 1 | H106: Karu | I106: 11 | J106: 80 | K106: 880 | L106: 3
B107: P068 | C107: 2015-03-23 | D107: Kask | E107: Pärnu | F107: kask | G107: 1 | H107: Ilves | I107: 32 | J107: 70 | K107: 2240 | L107: 3
B108: P069 | C108: 2015-03-24 | D108: Kass | E108: Paide | F108: tamm | G108: 2 | H108: Jänes | I108: 23 | J108: 99 | K108: 2277 | L108: 3
B109: P070 | C109: 2015-03-25 | D109: Känd | E109: Harju | F109: kuusk | G109: 1 | H109: Ilves | I109: 72 | J109: 80 | K109: 5760 | L109: 3
B110: P070 | C110: 2015-03-25 | D110: Känd | E110: Harju | F110: kuusk | G110: 2 | H110: Ilves | I110: 58 | J110: 72 | K110: 4176 | L110: 3
B111: P071 | C111: 2015-03-26 | D111: Vares | E111: Rapla | F111: lepp | G111: 2 | H111: Siil | I111: 52 | J111: 59 | K111: 3068 | L111: 3
B112: P072 | C112: 2015-03-26 | D112: Lepp | E112: Viljandi | F112: saar | G112: 1 | H112: Ilves | I112: 8 | J112: 85 | K112: 680 | L112: 3
B113: P073 | C113: 2015-03-31 | D113: Kaun | E113: Pärnu | F113: haab | G113: 1 | H113: Hunt | I113: 27 | J113: 50 | K113: 1350 | L113: 3
B114: P073 | C114: 2015-03-31 | D114: Kaun | E114: Pärnu | F114: kuusk | G114: 1 | H114: Hunt | I114: 21 | J114: 80 | K114: 1680 | L114: 3
B115: P074 | C115: 2015-04-01 | D115: Saar | E115: Valga | F115: saar | G115: 1 | H115: Põder | I115: 13 | J115: 85 | K115: 1105 | L115: 4
B116: P075 | C116: 2015-04-02 | D116: Lepp | E116: Viljandi | F116: kask | G116: 2 | H116: Ilves | I116: 22 | J116: 63 | K116: 1386 | L116: 4
B117: P075 | C117: 2015-04-02 | D117: Lepp | E117: Viljandi | F117: saar | G117: 1 | H117: Ilves | I117: 35 | J117: 85 | K117: 2975 | L117: 4
B118: P076 | C118: 2015-04-02 | D118: Kask | E118: Pärnu | F118: kuusk | G118: 2 | H118: Siil | I118: 14 | J118: 72 | K118: 1008 | L118: 4
B119: P077 | C119: 2015-04-03 | D119: Kaasik | E119: Pärnu | F119: kask | G119: 1 | H119: Põder | I119: 39 | J119: 70 | K119: 2730 | L119: 4
B120: P078 | C120: 2015-04-04 | D120: Lind | E120: Valga | F120: haab | G120: 1 | H120: Ilves | I120: 54 | J120: 50 | K120: 2700 | L120: 4
B121: P078 | C121: 2015-04-04 | D121: Lind | E121: Valga | F121: mänd | G121: 1 | H121: Hunt | I121: 8 | J121: 75 | K121: 600 | L121: 4
B122: P079 | C122: 2015-04-05 | D122: Juur | E122: Pärnu | F122: haab | G122: 1 | H122: Ilves | I122: 15 | J122: 50 | K122: 750 | L122: 4
B123: P080 | C123: 2015-04-06 | D123: Haab | E123: Pärnu | F123: mänd | G123: 3 | H123: Ilves | I123: 34 | J123: 60 | K123: 2040 | L123: 4
B124: P081 | C124: 2015-04-08 | D124: Kaasik | E124: Pärnu | F124: tamm | G124: 2 | H124: Hunt | I124: 50 | J124: 99 | K124: 4950 | L124: 4
B125: P082 | C125: 2015-04-09 | D125: Juur | E125: Pärnu | F125: haab | G125: 1 | H125: Siil | I125: 35 | J125: 50 | K125: 1750 | L125: 4
B126: P083 | C126: 2015-04-10 | D126: Varblane | E126: Harju | F126: haab | G126: 1 | H126: Rebane | I126: 30 | J126: 50 | K126: 1500 | L126: 4
B127: P083 | C127: 2015-04-10 | D127: Varblane | E127: Harju | F127: saar | G127: 1 | H127: Rebane | I127: 36 | J127: 85 | K127: 3060 | L127: 4
B128: P084 | C128: 2015-04-11 | D128: Vares | E128: Rapla | F128: tamm | G128: 1 | H128: Hunt | I128: 20 | J128: 110 | K128: 2200 | L128: 4
B129: P085 | C129: 2015-04-14 | D129: Lepik | E129: Paide | F129: haab | G129: 2 | H129: Karu | I129: 75 | J129: 45 | K129: 3375 | L129: 4
B130: P085 | C130: 2015-04-14 | D130: Lepik | E130: Paide | F130: vaher | G130: 1 | H130: Karu | I130: 13 | J130: 95 | K130: 1235 | L130: 4
B131: P086 | C131: 2015-04-14 | D131: Seen | E131: Võru | F131: küte | G131: 2 | H131: Ilves | I131: 68 | J131: 42 | K131: 2856 | L131: 4
B132: P087 | C132: 2015-04-15 | D132: Varblane | E132: Harju | F132: mänd | G132: 1 | H132: Hunt | I132: 69 | J132: 75 | K132: 5175 | L132: 4
B133: P088 | C133: 2015-04-16 | D133: Känd | E133: Harju | F133: lepp | G133: 1 | H133: Põder | I133: 40 | J133: 65 | K133: 2600 | L133: 4
B134: P088 | C134: 2015-04-16 | D134: Känd | E134: Harju | F134: mänd | G134: 2 | H134: Põder | I134: 61 | J134: 68 | K134: 4148 | L134: 4
B135: P089 | C135: 2015-04-16 | D135: Mänd | E135: Harju | F135: lepp | G135: 2 | H135: Põder | I135: 25 | J135: 59 | K135: 1475 | L135: 4
B136: P090 | C136: 2015-04-17 | D136: Kuusk | E136: Lääne | F136: saar | G136: 3 | H136: Rebane | I136: 41 | J136: 68 | K136: 2788 | L136: 4
B137: P091 | C137: 2015-04-18 | D137: Kaun | E137: =VLOOKUP(P_ostja, o_tab, 2, 0) -> Pärnu | F137: haab | G137: 1 | H137: Ilves | I137: 72 | J137: =VLOOKUP(P_liik, P_hinnad, P_sort+1, 0) -> 50 | K137: =P_hind * P_kogus -> 3600 | L137: =MONTH(P_kuupäev) -> 4
B138: P092 | C138: 2015-04-19 | D138: Kuusk | E138: Lääne | F138: kask | G138: 1 | H138: Jänes | I138: 51 | J138: 70 | K138: 3570 | L138: 4
B139: P092 | C139: 2015-04-19 | D139: Kuusk | E139: Lääne | F139: lepp | G139: 2 | H139: Jänes | I139: 52 | J139: 59 | K139: 3068 | L139: 4
B140: P093 | C140: 2015-04-20 | D140: Kaun | E140: Pärnu | F140: mänd | G140: 3 | H140: Jänes | I140: 71 | J140: 60 | K140: 4260 | L140: 4
B141: P094 | C141: 2015-04-20 | D141: Tuvi | E141: Harju | F141: lepp | G141: 1 | H141: Hunt | I141: 30 | J141: 65 | K141: 1950 | L141: 4
B142: P094 | C142: 2015-04-20 | D142: Tuvi | E142: Harju | F142: mänd | G142: 2 | H142: Hunt | I142: 53 | J142: 68 | K142: 3604 | L142: 4
B143: P095 | C143: 2015-04-21 | D143: Haab | E143: Pärnu | F143: haab | G143: 1 | H143: Karu | I143: 41 | J143: 50 | K143: 2050 | L143: 4
B144: P095 | C144: 2015-04-21 | D144: Haab | E144: Pärnu | F144: kuusk | G144: 1 | H144: Karu | I144: 62 | J144: 80 | K144: 4960 | L144: 4
B145: P095 | C145: 2015-04-21 | D145: Haab | E145: Pärnu | F145: mänd | G145: 2 | H145: Karu | I145: 21 | J145: 68 | K145: 1428 | L145: 4
B146: P096 | C146: 2015-04-23 | D146: Lind | E146: Valga | F146: kuusk | G146: 3 | H146: Ilves | I146: 45 | J146: 64 | K146: 2880 | L146: 4
B147: P096 | C147: 2015-04-23 | D147: Lind | E147: Valga | F147: tamm | G147: 1 | H147: Jänes | I147: 37 | J147: 110 | K147: 4070 | L147: 4
B148: P097 | C148: 2015-04-24 | D148: Känd | E148: Harju | F148: kuusk | G148: 1 | H148: Ilves | I148: 29 | J148: 80 | K148: 2320 | L148: 4
B149: P097 | C149: 2015-04-24 | D149: Känd | E149: Harju | F149: küte | G149: 3 | H149: Ilves | I149: 63 | J149: 38 | K149: 2394 | L149: 4
B150: P097 | C150: 2015-04-24 | D150: Känd | E150: Harju | F150: tamm | G150: 1 | H150: Ilves | I150: 43 | J150: 110 | K150: 4730 | L150: 4
B151: P098 | C151: 2015-04-25 | D151: Karu | E151: Lääne | F151: lepp | G151: 2 | H151: Siil | I151: 65 | J151: 59 | K151: 3835 | L151: 4
B152: P099 | C152: 2015-04-25 | D152: Kuusik | E152: Viljandi | F152: kask | G152: 1 | H152: Hunt | I152: 31 | J152: 70 | K152: 2170 | L152: 4
B153: P099 | C153: 2015-04-25 | D153: Kuusik | E153: Viljandi | F153: lepp | G153: 1 | H153: Hunt | I153: 36 | J153: 65 | K153: 2340 | L153: 4
B154: P100 | C154: 2015-04-26 | D154: Kaasik | E154: Pärnu | F154: mänd | G154: 2 | H154: Ilves | I154: 70 | J154: 68 | K154: 4760 | L154: 4
B155: P101 | C155: 2015-04-27 | D155: Saar | E155: Valga | F155: kask | G155: 1 | H155: Hunt | I155: 15 | J155: 70 | K155: 1050 | L155: 4
B156: P101 | C156: 2015-04-27 | D156: Saar | E156: Valga | F156: vaher | G156: 3 | H156: Hunt | I156: 24 | J156: 76 | K156: 1824 | L156: 4
B157: P102 | C157: 2015-04-28 | D157: Varblane | E157: Harju | F157: saar | G157: 2 | H157: Põder | I157: 48 | J157: 77 | K157: 3696 | L157: 4
B158: P103 | C158: 2015-04-29 | D158: Lind | E158: Valga | F158: mänd | G158: 1 | H158: Hunt | I158: 37 | J158: 75 | K158: 2775 | L158: 4
B159: P103 | C159: 2015-04-29 | D159: Lind | E159: Valga | F159: mänd | G159: 2 | H159: Hunt | I159: 33 | J159: 68 | K159: 2244 | L159: 4
B160: P104 | C160: 2015-04-30 | D160: Varblane | E160: Harju | F160: kuusk | G160: 2 | H160: Ilves | I160: 54 | J160: 72 | K160: 3888 | L160: 4
B161: P104 | C161: 2015-04-30 | D161: Varblane | E161: Harju | F161: mänd | G161: 1 | H161: Ilves | I161: 25 | J161: 75 | K161: 1875 | L161: 4
B162: P105 | C162: 2015-05-02 | D162: Seen | E162: Võru | F162: kuusk | G162: 1 | H162: Ilves | I162: 36 | J162: 80 | K162: 2880 | L162: 5
B163: P106 | C163: 2015-05-03 | D163: Lepp | E163: Viljandi | F163: haab | G163: 3 | H163: Ilves | I163: 45 | J163: 40 | K163: 1800 | L163: 5
B164: P106 | C164: 2015-05-03 | D164: Lepp | E164: Viljandi | F164: küte | G164: 2 | H164: Ilves | I164: 31 | J164: 42 | K164: 1302 | L164: 5
B165: P107 | C165: 2015-05-03 | D165: Lepp | E165: Viljandi | F165: mänd | G165: 3 | H165: Rebane | I165: 17 | J165: 60 | K165: 1020 | L165: 5
B166: P108 | C166: 2015-05-04 | D166: Saar | E166: Valga | F166: saar | G166: 2 | H166: Ilves | I166: 37 | J166: 77 | K166: 2849 | L166: 5
B167: P109 | C167: 2015-05-04 | D167: Pihel | E167: Rapla | F167: kuusk | G167: 1 | H167: Karu | I167: 12 | J167: 80 | K167: 960 | L167: 5
B168: P110 | C168: 2015-05-06 | D168: Kuusk | E168: Lääne | F168: küte | G168: 1 | H168: Rebane | I168: 12 | J168: 47 | K168: 564 | L168: 5
B169: P111 | C169: 2015-05-08 | D169: Vares | E169: Rapla | F169: tamm | G169: 3 | H169: Jänes | I169: 40 | J169: 88 | K169: 3520 | L169: 5
B170: P112 | C170: 2015-05-09 | D170: Haab | E170: Pärnu | F170: küte | G170: 1 | H170: Karu | I170: 18 | J170: 47 | K170: 846 | L170: 5
B171: P112 | C171: 2015-05-09 | D171: Haab | E171: Pärnu | F171: saar | G171: 2 | H171: Karu | I171: 10 | J171: 77 | K171: 770 | L171: 5
B172: P113 | C172: 2015-05-10 | D172: Lind | E172: Valga | F172: küte | G172: 1 | H172: Jänes | I172: 49 | J172: 47 | K172: 2303 | L172: 5
B173: P113 | C173: 2015-05-10 | D173: Lind | E173: Valga | F173: mänd | G173: 1 | H173: Jänes | I173: 54 | J173: 75 | K173: 4050 | L173: 5
B174: P114 | C174: 2015-05-10 | D174: Kaun | E174: Pärnu | F174: haab | G174: 2 | H174: Põder | I174: 25 | J174: 45 | K174: 1125 | L174: 5
B175: P114 | C175: 2015-05-10 | D175: Kaun | E175: Pärnu | F175: saar | G175: 3 | H175: Põder | I175: 19 | J175: 68 | K175: 1292 | L175: 5
B176: P115 | C176: 2015-05-11 | D176: Juur | E176: Pärnu | F176: küte | G176: 1 | H176: Ilves | I176: 71 | J176: 47 | K176: 3337 | L176: 5
B177: P116 | C177: 2015-05-13 | D177: Kask | E177: Pärnu | F177: lepp | G177: 1 | H177: Hunt | I177: 41 | J177: 65 | K177: 2665 | L177: 5
B178: P116 | C178: 2015-05-13 | D178: Kask | E178: Pärnu | F178: lepp | G178: 2 | H178: Hunt | I178: 14 | J178: 59 | K178: 826 | L178: 5
B179: P117 | C179: 2015-05-14 | D179: Kaun | E179: Pärnu | F179: kuusk | G179: 3 | H179: Jänes | I179: 55 | J179: 64 | K179: 3520 | L179: 5
B180: P118 | C180: 2015-05-15 | D180: Lind | E180: Valga | F180: küte | G180: 1 | H180: Rebane | I180: 44 | J180: 47 | K180: 2068 | L180: 5
B181: P119 | C181: 2015-05-15 | D181: Lepp | E181: Viljandi | F181: kask | G181: 2 | H181: Karu | I181: 19 | J181: 63 | K181: 1197 | L181: 5
B182: P120 | C182: 2015-05-15 | D182: Luik | E182: Viljandi | F182: lepp | G182: 3 | H182: Siil | I182: 33 | J182: 52 | K182: 1716 | L182: 5
B183: P121 | C183: 2015-05-16 | D183: Pihel | E183: Rapla | F183: lepp | G183: 1 | H183: Karu | I183: 17 | J183: 65 | K183: 1105 | L183: 5
B184: P122 | C184: 2015-05-17 | D184: Lepik | E184: Paide | F184: küte | G184: 3 | H184: Ilves | I184: 13 | J184: 38 | K184: 494 | L184: 5
B185: P122 | C185: 2015-05-17 | D185: Lepik | E185: Paide | F185: mänd | G185: 2 | H185: Ilves | I185: 76 | J185: 68 | K185: 5168 | L185: 5
B186: P123 | C186: 2015-05-17 | D186: Kask | E186: Pärnu | F186: mänd | G186: 1 | H186: Hunt | I186: 47 | J186: 75 | K186: 3525 | L186: 5
B187: P124 | C187: 2015-05-18 | D187: Luik | E187: Viljandi | F187: tamm | G187: 1 | H187: Põder | I187: 32 | J187: 110 | K187: 3520 | L187: 5
B188: P125 | C188: 2015-05-19 | D188: Lepp | E188: Viljandi | F188: haab | G188: 3 | H188: Põder | I188: 65 | J188: 40 | K188: 2600 | L188: 5
B189: P126 | C189: 2015-05-21 | D189: Kask | E189: Pärnu | F189: tamm | G189: 1 | H189: Ilves | I189: 30 | J189: 110 | K189: 3300 | L189: 5
B190: P127 | C190: 2015-05-22 | D190: Kaasik | E190: Pärnu | F190: kuusk | G190: 2 | H190: Ilves | I190: 74 | J190: 72 | K190: 5328 | L190: 5
B191: P128 | C191: 2015-05-23 | D191: Saar | E191: Valga | F191: küte | G191: 3 | H191: Karu | I191: 30 | J191: 38 | K191: 1140 | L191: 5
B192: P129 | C192: 2015-05-26 | D192: Tuvi | E192: Harju | F192: lepp | G192: 1 | H192: Siil | I192: 24 | J192: 65 | K192: 1560 | L192: 5
B193: P130 | C193: 2015-05-27 | D193: Juur | E193: Pärnu | F193: haab | G193: 1 | H193: Hunt | I193: 20 | J193: 50 | K193: 1000 | L193: 5
B194: P130 | C194: 2015-05-27 | D194: Juur | E194: Pärnu | F194: küte | G194: 2 | H194: Hunt | I194: 11 | J194: 42 | K194: 462 | L194: 5
B195: P131 | C195: 2015-05-29 | D195: Känd | E195: Harju | F195: mänd | G195: 3 | H195: Hunt | I195: 79 | J195: 60 | K195: 4740 | L195: 5
B196: P132 | C196: 2015-05-30 | D196: Seen | E196: Võru | F196: küte | G196: 2 | H196: Rebane | I196: 12 | J196: 42 | K196: 504 | L196: 5
B197: P132 | C197: 2015-05-30 | D197: Seen | E197: Võru | F197: mänd | G197: 3 | H197: Rebane | I197: 28 | J197: 60 | K197: 1680 | L197: 5
B198: P133 | C198: 2015-06-02 | D198: Saar | E198: Valga | F198: küte | G198: 1 | H198: Hunt | I198: 51 | J198: 47 | K198: 2397 | L198: 6
B199: P134 | C199: 2015-06-04 | D199: Lepp | E199: Viljandi | F199: kuusk | G199: 1 | H199: Siil | I199: 31 | J199: 80 | K199: 2480 | L199: 6
B200: P135 | C200: 2015-06-05 | D200: Lind | E200: Valga | F200: kask | G200: 2 | H200: Rebane | I200: 23 | J200: 63 | K200: 1449 | L200: 6
B201: P136 | C201: 2015-06-08 | D201: Seen | E201: =VLOOKUP(P_ostja, o_tab, 2, 0) -> Võru | F201: küte | G201: 1 | H201: Hunt | I201: 56 | J201: =VLOOKUP(P_liik, P_hinnad, P_sort+1, 0) -> 47 | K201: =P_hind * P_kogus -> 2632 | L201: =MONTH(P_kuupäev) -> 6
B202: P137 | C202: 2015-06-09 | D202: Seen | E202: Võru | F202: haab | G202: 1 | H202: Siil | I202: 52 | J202: 50 | K202: 2600 | L202: 6
B203: P138 | C203: 2015-06-10 | D203: Lepp | E203: Viljandi | F203: kuusk | G203: 1 | H203: Hunt | I203: 54 | J203: 80 | K203: 4320 | L203: 6
B204: P138 | C204: 2015-06-10 | D204: Lepp | E204: Viljandi | F204: vaher | G204: 3 | H204: Hunt | I204: 25 | J204: 76 | K204: 1900 | L204: 6
... 233 more rows

Sheet Sort
E1: veeb | F1: klipp Sortimine | J1: Harjutustabelid
J2: Töötajad | K2: Puidu müük
I4: Arvutite müükide arvestus
I6: Kuupäev | J6: Linn | K6: Arvuti | L6: Arv | M6: Hind | N6: Maksumus
I7: 2015-01-02 | J7: Tallinn | K7: Frodo | L7: 2 | M7: =VLOOKUP(Arvuti, Arvutid, 6, 0) -> 870 | N7: =Hind * Arv -> 1740
I8: 2015-01-02 | J8: Valga | K8: Balrog | L8: 1 | M8: 419 | N8: 419
I9: 2015-01-03 | J9: Tallinn | K9: Aragorn | L9: 3 | M9: 499 | N9: 1497
I10: 2015-01-03 | J10: Tallinn | K10: Balrog | L10: 3 | M10: 419 | N10: 1257
I11: 2015-01-03 | J11: Võru | K11: Gandalf | L11: 2 | M11: 849 | N11: 1698
I12: 2015-01-04 | J12: Tallinn | K12: Eldar | L12: 3 | M12: 465 | N12: 1395
I13: 2015-01-04 | J13: Tartu | K13: Balrog | L13: 5 | M13: 419 | N13: 2095
I14: 2015-01-07 | J14: Pärnu | K14: Eldar | L14: 3 | M14: 465 | N14: 1395
I15: 2015-01-07 | J15: Tallinn | K15: Faram | L15: 1 | M15: 599 | N15: 599
I16: 2015-01-07 | J16: Valga | K16: Balrog | L16: 6 | M16: 419 | N16: 2514
I17: 2015-01-07 | J17: Valga | K17: Frodo | L17: 1 | M17: 870 | N17: 870
I18: 2015-01-09 | J18: Tallinn | K18: Grimbold | L18: 6 | M18: 1149 | N18: 6894
I19: 2015-01-10 | J19: Pärnu | K19: Elend | L19: 1 | M19: 920 | N19: 920
I20: 2015-01-10 | J20: Pärnu | K20: Rohan | L20: 4 | M20: 340 | N20: 1360
I21: 2015-01-10 | J21: Tartu | K21: Sauron | L21: 2 | M21: 339 | N21: 678
I22: 2015-01-11 | J22: Tallinn | K22: Marvin | L22: 1 | M22: 370 | N22: 370
I23: 2015-01-11 | J23: Tartu | K23: Balrog | L23: 2 | M23: 419 | N23: 838
I24: 2015-01-11 | J24: Valga | K24: Aragorn | L24: 1 | M24: 499 | N24: 499
I25: 2015-01-14 | J25: Pärnu | K25: Gandalf | L25: 3 | M25: 849 | N25: 2547
I26: 2015-01-14 | J26: Tartu | K26: Frodo | L26: 4 | M26: 870 | N26: 3480
I27: 2015-01-14 | J27: Valga | K27: Kalvar | L27: 2 | M27: 699 | N27: 1398
I28: 2015-01-16 | J28: Tallinn | K28: Arven | L28: 5 | M28: 369 | N28: 1845
I29: 2015-01-17 | J29: Tallinn | K29: Kalvar | L29: 7 | M29: 699 | N29: 4893
I30: 2015-01-17 | J30: Tartu | K30: Aragorn | L30: 3 | M30: 499 | N30: 1497
I31: 2015-01-18 | J31: Pärnu | K31: Eldar | L31: 1 | M31: 465 | N31: 465
I32: 2015-01-18 | J32: Tallinn | K32: Aragorn | L32: 1 | M32: 499 | N32: 499
I33: 2015-01-19 | J33: Tallinn | K33: Faram | L33: 3 | M33: 599 | N33: 1797
I34: 2015-01-19 | J34: Tartu | K34: Kalvar | L34: 1 | M34: 699 | N34: 699
I35: 2015-01-19 | J35: Võru | K35: Elend | L35: 5 | M35: 920 | N35: 4600
I36: 2015-01-20 | J36: Tallinn | K36: Elend | L36: 2 | M36: 920 | N36: 1840
I37: 2015-01-20 | J37: Võru | K37: Sauron | L37: 3 | M37: 339 | N37: 1017
I38: 2015-01-21 | J38: Pärnu | K38: Arven | L38: 1 | M38: 369 | N38: 369
I39: 2015-01-25 | J39: Võru | K39: Sauron | L39: 1 | M39: 339 | N39: 339
I40: 2015-01-26 | J40: Pärnu | K40: Gandalf | L40: 2 | M40: 849 | N40: 1698

Sheet Päringud
E1: veeb

Sheet Filter
E1: veeb | F1: Klipp Autofilter | I1: Harjutustabelid
I2: töötajad | J2: puidu müük
B3: Filter - harilik filter ehk autofilter | N3: NB! Subtotal
I4: Arvutite müükide arvestus | L4: =SUBTOTAL(9, L7:L40) -> 90 | M4: =SUBTOTAL(1, M7:M40) -> 611.8529412 | N4: =SUBTOTAL(9, N7:N40) -> 54875
I6: Kuupäev | J6: Linn | K6: Arvuti | L6: Arv | M6: Hind | N6: Maksumus
I7: 2015-01-03 | J7: Tallinn | K7: Aragorn | L7: 2 | M7: =VLOOKUP(Arvuti, Arvutid, 6, 0) -> 499 | N7: =Hind*Arv -> 998
I8: 2015-01-03 | J8: Tallinn | K8: Balrog | L8: 3 | M8: 419 | N8: 1257
I9: 2015-01-09 | J9: Tallinn | K9: Grimbold | L9: 6 | M9: 1149 | N9: 6894
I10: 2015-01-04 | J10: Tallinn | K10: Eldar | L10: 3 | M10: 465 | N10: 1395
I11: 2015-01-07 | J11: Tallinn | K11: Faram | L11: 1 | M11: 599 | N11: 599
I12: 2015-01-02 | J12: Tallinn | K12: Frodo | L12: 2 | M12: 870 | N12: 1740
I13: 2015-01-11 | J13: Tallinn | K13: Frodo | L13: 1 | M13: 870 | N13: 870
I14: 2015-01-16 | J14: Tallinn | K14: Arven | L14: 5 | M14: 369 | N14: 1845
I15: 2015-01-07 | J15: Pärnu | K15: Eldar | L15: 3 | M15: 465 | N15: 1395
I16: 2015-01-17 | J16: Tallinn | K16: Balrog | L16: 7 | M16: 419 | N16: 2933
I17: 2015-01-26 | J17: Pärnu | K17: Gandalf | L17: 2 | M17: 849 | N17: 1698
I18: 2015-01-18 | J18: Tallinn | K18: Aragorn | L18: 1 | M18: 499 | N18: 499
I19: 2015-01-10 | J19: Pärnu | K19: Elend | L19: 1 | M19: 920 | N19: 920
I20: 2015-01-19 | J20: Tallinn | K20: Frodo | L20: 3 | M20: 870 | N20: 2610
I21: 2015-01-20 | J21: Tallinn | K21: Elend | L21: 2 | M21: 920 | N21: 1840
I22: 2015-01-10 | J22: Tartu | K22: Sauron | L22: 2 | M22: 339 | N22: 678
I23: 2015-01-11 | J23: Tartu | K23: Balrog | L23: 2 | M23: 419 | N23: 838
I24: 2015-01-14 | J24: Tartu | K24: Frodo | L24: 4 | M24: 870 | N24: 3480
I25: 2015-01-02 | J25: Valga | K25: Balrog | L25: 1 | M25: 419 | N25: 419
I26: 2015-01-14 | J26: Pärnu | K26: Gandalf | L26: 3 | M26: 849 | N26: 2547
I27: 2015-01-11 | J27: Valga | K27: Aragorn | L27: 1 | M27: 499 | N27: 499
I28: 2015-01-17 | J28: Tartu | K28: Aragorn | L28: 3 | M28: 499 | N28: 1497
I29: 2015-01-14 | J29: Valga | K29: Kalvar | L29: 2 | M29: 699 | N29: 1398
I30: 2015-01-07 | J30: Valga | K30: Balrog | L30: 6 | M30: 419 | N30: 2514
I31: 2015-01-07 | J31: Valga | K31: Frodo | L31: 1 | M31: 870 | N31: 870
I32: 2015-01-18 | J32: Pärnu | K32: Eldar | L32: 1 | M32: =VLOOKUP(Arvuti, Arvutid, 6, 0) -> 465 | N32: =Hind*Arv -> 465
I33: 2015-01-10 | J33: Pärnu | K33: Rohan | L33: 4 | M33: 340 | N33: 1360
I34: 2015-01-19 | J34: Tartu | K34: Kalvar | L34: 1 | M34: 699 | N34: 699
I35: 2015-01-03 | J35: Võru | K35: Gandalf | L35: 2 | M35: 849 | N35: 1698
I36: 2015-01-19 | J36: Võru | K36: Elend | L36: 5 | M36: 920 | N36: 4600
I37: 2015-01-20 | J37: Võru | K37: Sauron | L37: 3 | M37: 339 | N37: 1017
I38: 2015-01-21 | J38: Pärnu | K38: Arven | L38: 1 | M38: 369 | N38: 369
I39: 2015-01-25 | J39: Võru | K39: Sauron | L39: 1 | M39: 339 | N39: 339
I40: 2015-01-04 | J40: Tartu | K40: Balrog | L40: 5 | M40: 419 | N40: 2095

Sheet Aren_Filter
E1: veeb | F1: klipp Arendatud filter 1 | J1: Harjutustabelid:
D2: klipp Arendatud filter 2 | F2: klipp Arendatud filter 3 | J2: Töötajad | K2: Puidu müük
B5: Arvutite müükide arvestus
B7: Linn | D7: Linn | E7: Arvuti | G7: Maksumus
B8: Pärnu | D8: Tallinn | E8: Frodo | G8: >2000
B10: Linn | D10: Linn | E10: Arvuti | F10: Arv
B11: Tallinn | D11: Tallinn | E11: Balrog | F11: >1
B12: Tartu | D12: Tartu | E12: Balrog | F12: >1
B13: Võru
D14: Arvuti | E14: Kuupäev | F14: Kuupäev
B15: AM_AF | D15: Aragorn | E15: >=10.01.15 | F15: <=20.01.15
B17: Kuupäev | C17: Linn | D17: Arvuti | E17: Arv | F17: Hind | G17: Maksumus
B18: 2015-01-02 | C18: Tallinn | D18: Frodo | E18: 3 | F18: =VLOOKUP(Arvuti, Arvutid, 6, 0) -> 870 | G18: =Hind*Arv -> 2610
B19: 2015-01-02 | C19: Valga | D19: Balrog | E19: 1 | F19: 419 | G19: 419
B20: 2015-01-03 | C20: Võru | D20: Gandalf | E20: 2 | F20: 849 | G20: 1698
B21: 2015-01-03 | C21: Tallinn | D21: Balrog | E21: 3 | F21: 419 | G21: 1257
B22: 2015-01-03 | C22: Tallinn | D22: Aragorn | E22: 2 | F22: 499 | G22: 998
B23: 2015-01-04 | C23: Tartu | D23: Balrog | E23: 5 | F23: 419 | G23: 2095
B24: 2015-01-04 | C24: Tallinn | D24: Eldar | E24: 3 | F24: 465 | G24: 1395
B25: 2015-01-07 | C25: Valga | D25: Balrog | E25: 6 | F25: 419 | G25: 2514
B26: 2015-01-07 | C26: Pärnu | D26: Balrog | E26: 3 | F26: 419 | G26: 1257
B27: 2015-01-07 | C27: Valga | D27: Frodo | E27: 1 | F27: 870 | G27: 870
B28: 2015-01-07 | C28: Tallinn | D28: Frodo | E28: 1 | F28: 870 | G28: 870
B29: 2015-01-09 | C29: Tallinn | D29: Grimbold | E29: 6 | F29: 1149 | G29: 6894
B30: 2015-01-10 | C30: Pärnu | D30: Rohan | E30: 4 | F30: 340 | G30: 1360
B31: 2015-01-10 | C31: Pärnu | D31: Elend | E31: 1 | F31: 920 | G31: 920
B32: 2015-01-10 | C32: Tartu | D32: Sauron | E32: 2 | F32: 339 | G32: 678
B33: 2015-01-11 | C33: Tartu | D33: Balrog | E33: 2 | F33: 419 | G33: 838
B34: 2015-01-11 | C34: Tallinn | D34: Marvin | E34: 1 | F34: 370 | G34: 370
B35: 2015-01-11 | C35: Valga | D35: Aragorn | E35: 1 | F35: 499 | G35: 499
B36: 2015-01-14 | C36: Tartu | D36: Frodo | E36: 4 | F36: 870 | G36: 3480
B37: 2015-01-14 | C37: Pärnu | D37: Gandalf | E37: 3 | F37: 849 | G37: 2547
B38: 2015-01-14 | C38: Valga | D38: Kalvar | E38: 2 | F38: 699 | G38: 1398
B39: 2015-01-16 | C39: Tallinn | D39: Frodo | E39: 5 | F39: 870 | G39: 4350
B40: 2015-01-17 | C40: Tallinn | D40: Kalvar | E40: 7 | F40: 699 | G40: 4893
B41: 2015-01-17 | C41: Tartu | D41: Aragorn | E41: 3 | F41: 499 | G41: 1497
B42: 2015-01-18 | C42: Tallinn | D42: Aragorn | E42: 1 | F42: 499 | G42: 499
B43: 2015-01-18 | C43: Pärnu | D43: Eldar | E43: 1 | F43: 465 | G43: 465
B44: 2015-01-19 | C44: Võru | D44: Elend | E44: 5 | F44: 920 | G44: 4600
B45: 2015-01-19 | C45: Tallinn | D45: Faram | E45: 3 | F45: 599 | G45: 1797
B46: 2015-01-19 | C46: Tartu | D46: Kalvar | E46: 1 | F46: 699 | G46: 699
B47: 2015-01-20 | C47: Tallinn | D47: Elend | E47: 2 | F47: 920 | G47: 1840
B48: 2015-01-20 | C48: Võru | D48: Sauron | E48: 3 | F48: 339 | G48: 1017
B49: 2015-01-21 | C49: Pärnu | D49: Arven | E49: 1 | F49: 369 | G49: 369
B50: 2015-01-25 | C50: Võru | D50: Sauron | E50: 1 | F50: 339 | G50: 339
B51: 2015-01-26 | C51: Pärnu | D51: Gandalf | E51: 2 | F51: 849 | G51: 1698

Sheet Filter_PM_D
B2: Demo. Demo. Demo
B3: Puidu müük. Väljavõtete tegemine maakondade ja puidu liikide lõikes
B5: Maakond | C5: puidu liik | J5: =DSUM(PM, "P_kogus", Kriteerium) -> 1254 | K5: =DSUM(PM, "P_maks",Kriteerium) -> 82539
B6: P_maa | C6: P_liik
B7: Rapla
E9: Kokku: | F9: =SUM(F13:F203) -> 1254 | G9: =SUM(G13:G203) -> 82539
B11: Kuupäev | C11: Arve | D11: Müüja | E11: Ostja | F11: Kogus | G11: Maksumus
B12: P_kuupäev | C12: P_arve | D12: P_müüja | E12: P_ostja | F12: P_kogus | G12: P_maks
B13: 2015-01-07 | C13: P008 | D13: Hunt | E13: Vaher | F13: 23 | G13: 1564
B14: 2015-01-13 | C14: P013 | D14: Jänes | E14: Vares | F14: 25 | G14: 1050
B15: 2015-01-13 | C15: P013 | D15: Jänes | E15: Vares | F15: 22 | G15: 1034
B16: 2015-01-13 | C16: P013 | D16: Jänes | E16: Vares | F16: 28 | G16: 3080
B17: 2015-01-19 | C17: P018 | D17: Siil | E17: Pihel | F17: 52 | G17: 3328
B18: 2015-02-04 | C18: P033 | D18: Karu | E18: Vaher | F18: 66 | G18: 4224
B19: 2015-02-26 | C19: P045 | D19: Hunt | E19: Vaher | F19: 35 | G19: 2450
B20: 2015-03-11 | C20: P058 | D20: Hunt | E20: Vaher | F20: 59 | G20: 2950
B21: 2015-03-11 | C21: P058 | D21: Hunt | E21: Vaher | F21: 25 | G21: 1750
B22: 2015-03-11 | C22: P058 | D22: Hunt | E22: Vaher | F22: 11 | G22: 770
B23: 2015-03-26 | C23: P071 | D23: Siil | E23: Vares | F23: 52 | G23: 3068
B24: 2015-04-11 | C24: P084 | D24: Hunt | E24: Vares | F24: 20 | G24: 2200
B25: 2015-05-04 | C25: P109 | D25: Karu | E25: Pihel | F25: 12 | G25: 960
B26: 2015-05-08 | C26: P111 | D26: Jänes | E26: Vares | F26: 40 | G26: 3520
B27: 2015-05-16 | C27: P121 | D27: Karu | E27: Pihel | F27: 17 | G27: 1105
B28: 2015-06-28 | C28: P150 | D28: Jänes | E28: Pihel | F28: 36 | G28: 2268
B29: 2015-07-11 | C29: P159 | D29: Põder | E29: Vaher | F29: 61 | G29: 2867
B30: 2015-07-27 | C30: P169 | D30: Jänes | E30: Pihel | F30: 19 | G30: 1425
B31: 2015-08-06 | C31: P179 | D31: Põder | E31: Vaher | F31: 63 | G31: 3717
B32: 2015-08-15 | C32: P183 | D32: Jänes | E32: Pihel | F32: 56 | G32: 3808
B33: 2015-09-04 | C33: P202 | D33: Põder | E33: Vaher | F33: 65 | G33: 3835
B34: 2015-09-23 | C34: P216 | D34: Jänes | E34: Pihel | F34: 74 | G34: 4144
B35: 2015-10-02 | C35: P223 | D35: Siil | E35: Vaher | F35: 31 | G35: 1550
B36: 2015-10-03 | C36: P224 | D36: Ilves | E36: Pihel | F36: 60 | G36: 4500
B37: 2015-12-03 | C37: P277 | D37: Jänes | E37: Vaher | F37: 21 | G37: 1239
B38: 2015-12-11 | C38: P282 | D38: Karu | E38: Vares | F38: 78 | G38: 5616
B39: 2015-12-11 | C39: P282 | D39: Karu | E39: Vares | F39: 53 | G39: 3445
B40: 2015-12-11 | C40: P282 | D40: Karu | E40: Vares | F40: 26 | G40: 2210
B41: 2015-12-21 | C41: P287 | D41: Siil | E41: Vaher | F41: 32 | G41: 2048
B42: 2015-12-22 | C42: P288 | D42: Jänes | E42: Pihel | F42: 12 | G42: 564
B43: 2015-12-23 | C43: P289 | D43: Hunt | E43: Vaher | F43: 18 | G43: 1710
B44: 2015-12-27 | C44: P291 | D44: Ilves | E44: Vaher | F44: 36 | G44: 2772
B45: 2015-12-27 | C45: P291 | D45: Ilves | E45: Vaher | F45: 26 | G45: 1768

Sheet Kokku
E1: veeb

Sheet Risttabelid
E1: veeb | F1: Klipp Risttabelid | J1: Harjutustabelid:
J2: Töötajad | K2: Puidu müük
I4: Arvutite müükide arvestus
I6: Kuupäev | J6: Linn | K6: Arvuti | L6: Arv | M6: Hind | N6: Maksumus
I7: 2015-01-02 | J7: Valga | K7: Balrog | L7: 2 | M7: =VLOOKUP(Arvuti, Arvutid, 6, 0) -> 419 | N7: =Hind*Arv -> 838
I8: 2015-01-03 | J8: Võru | K8: Gandalf | L8: 3 | M8: =VLOOKUP(Arvuti, Arvutid, 6, 0) -> 849 | N8: 2547
I9: 2015-01-03 | J9: Tallinn | K9: Aragorn | L9: 2 | M9: 499 | N9: 998
I10: 2015-01-03 | J10: Tallinn | K10: Balrog | L10: 3 | M10: 419 | N10: 1257
I11: 2015-01-09 | J11: Tallinn | K11: Grimbold | L11: 6 | M11: 1149 | N11: 6894
I12: 2015-01-19 | J12: Võru | K12: Elend | L12: 5 | M12: 920 | N12: 4600
I13: 2015-01-04 | J13: Tallinn | K13: Eldar | L13: 3 | M13: 465 | N13: 1395
I14: 2015-01-10 | J14: Tartu | K14: Sauron | L14: 2 | M14: 339 | N14: 678
I15: 2015-01-07 | J15: Pärnu | K15: Eldar | L15: 3 | M15: 465 | N15: 1395
I16: 2015-01-07 | J16: Tallinn | K16: Faram | L16: 1 | M16: 599 | N16: 599
I17: 2015-01-26 | J17: Pärnu | K17: Gandalf | L17: 2 | M17: 849 | N17: 1698
I18: 2015-01-11 | J18: Tartu | K18: Balrog | L18: 2 | M18: 419 | N18: 838
I19: 2015-01-10 | J19: Pärnu | K19: Elend | L19: 1 | M19: 920 | N19: 920
I20: 2015-01-02 | J20: Tallinn | K20: Frodo | L20: 2 | M20: 870 | N20: 1740
I21: 2015-01-11 | J21: Tallinn | K21: Frodo | L21: 1 | M21: 870 | N21: 870
I22: 2015-01-11 | J22: Valga | K22: Aragorn | L22: 1 | M22: 499 | N22: 499
I23: 2015-01-14 | J23: Tartu | K23: Frodo | L23: 4 | M23: 870 | N23: 3480
I24: 2015-01-16 | J24: Tallinn | K24: Arven | L24: 5 | M24: 369 | N24: 1845
I25: 2015-01-17 | J25: Tallinn | K25: Balrog | L25: 7 | M25: 419 | N25: 2933
I26: 2015-01-14 | J26: Pärnu | K26: Gandalf | L26: 3 | M26: 849 | N26: 2547
I27: 2015-01-14 | J27: Valga | K27: Kalvar | L27: 2 | M27: 699 | N27: 1398
I28: 2015-01-17 | J28: Tartu | K28: Aragorn | L28: 3 | M28: 499 | N28: 1497
I29: 2015-01-18 | J29: Tallinn | K29: Aragorn | L29: 1 | M29: 499 | N29: 499
I30: 2015-01-07 | J30: Valga | K30: Balrog | L30: 6 | M30: 419 | N30: 2514
I31: 2015-01-19 | J31: Tallinn | K31: Frodo | L31: 3 | M31: 870 | N31: 2610
I32: 2015-01-18 | J32: Pärnu | K32: Eldar | L32: 1 | M32: 465 | N32: 465
I33: 2015-01-10 | J33: Pärnu | K33: Rohan | L33: 4 | M33: 340 | N33: 1360
I34: 2015-01-19 | J34: Tartu | K34: Kalvar | L34: 1 | M34: 699 | N34: 699
I35: 2015-01-20 | J35: Tallinn | K35: Elend | L35: 2 | M35: 920 | N35: 1840
I36: 2015-01-07 | J36: Valga | K36: Frodo | L36: 1 | M36: 870 | N36: 870
I37: 2015-01-20 | J37: Võru | K37: Sauron | L37: 3 | M37: 339 | N37: 1017
I38: 2015-01-21 | J38: Pärnu | K38: Arven | L38: 1 | M38: 369 | N38: 369
I39: 2015-01-25 | J39: Võru | K39: Sauron | L39: 1 | M39: 339 | N39: 339
I40: 2015-01-04 | J40: Tartu | K40: Balrog | L40: 5 | M40: 419 | N40: 2095

Sheet SumIF
E1: veeb | F1: Klipp SumIF | J1: Harjutustabel | L1: Puidu müük
B3: Funktsioonid COUNTIF ja SUMIF | J3: Arvutite müükide arvestus | N3: AM_SIF
J5: A_Kuupäev | K5: A_Linn | L5: A_Arvuti | M5: A_Arv | N5: A_Hind | O5: A_Maksumus
J6: 2015-01-02 | K6: Tallinn | L6: Frodo | M6: 2 | N6: =VLOOKUP(A_Arvuti, Arvutid, 6, 0) -> 870 | O6: =A_Hind*A_Arv -> 1740
J7: 2015-01-02 | K7: Valga | L7: Balrog | M7: 1 | N7: 419 | O7: 419
J8: 2015-01-03 | K8: Tallinn | L8: Aragorn | M8: 2 | N8: 499 | O8: 998
J9: 2015-01-03 | K9: Tallinn | L9: Balrog | M9: 3 | N9: 419 | O9: 1257
J10: 2015-01-03 | K10: Võru | L10: Gandalf | M10: 2 | N10: 849 | O10: 1698
J11: 2015-01-04 | K11: Tallinn | L11: Eldar | M11: 3 | N11: 465 | O11: 1395
J12: 2015-01-04 | K12: Tartu | L12: Balrog | M12: 5 | N12: 419 | O12: 2095
J13: 2015-01-07 | K13: Pärnu | L13: Eldar | M13: 3 | N13: 465 | O13: 1395
J14: 2015-01-07 | K14: Tallinn | L14: Faram | M14: 1 | N14: 599 | O14: 599
J15: 2015-01-07 | K15: Valga | L15: Balrog | M15: 6 | N15: 419 | O15: 2514
J16: 2015-01-07 | K16: Valga | L16: Frodo | M16: 1 | N16: 870 | O16: 870
J17: 2015-01-09 | K17: Tallinn | L17: Grimbold | M17: 6 | N17: 1149 | O17: 6894
J18: 2015-01-10 | K18: Pärnu | L18: Elend | M18: 1 | N18: 920 | O18: 920
J19: 2015-01-10 | K19: Pärnu | L19: Rohan | M19: 4 | N19: 340 | O19: 1360
J20: 2015-01-10 | K20: Tartu | L20: Sauron | M20: 2 | N20: 339 | O20: 678
J21: 2015-01-11 | K21: Tallinn | L21: Frodo | M21: 1 | N21: 870 | O21: 870
B22: Arvud | C22: arv | J22: 2015-01-11 | K22: Tartu | L22: Balrog | M22: 2 | N22: 419 | O22: 838
B23: 23 | C23: 21 | E23: Mitu korda esineb loetelus arv 13 | J23: 2015-01-11 | K23: Valga | L23: Aragorn | M23: 1 | N23: 499 | O23: 499
B24: -45 | E24: Mitu korda esineb loetelus lahtris arv olev arv | J24: 2015-01-14 | K24: Pärnu | L24: Gandalf | M24: 3 | N24: 849 | O24: 2547
B25: 13 | E25: Positiivsete arvude summa | J25: 2015-01-14 | K25: Tartu | L25: Frodo | M25: 4 | N25: 870 | O25: 3480
B26: 18 | E26: Positiivsete arvude arv | J26: 2015-01-14 | K26: Valga | L26: Kalvar | M26: 2 | N26: 699 | O26: 1398
B27: 21 | E27: Positiivsete arvude aritmeetiline keskmine | J27: 2015-01-16 | K27: Tallinn | L27: Arven | M27: 5 | N27: 369 | O27: 1845
B28: 13 | E28: Mitu korda esineb loetelus arv 21 | J28: 2015-01-17 | K28: Tallinn | L28: Balrog | M28: 7 | N28: 419 | O28: 2933
B29: -16 | E29: Negatiivsete arvude summa | J29: 2015-01-17 | K29: Tartu | L29: Aragorn | M29: 3 | N29: 499 | O29: 1497
B30: 21 | E30: Negatiivsete arvude arv | J30: 2015-01-18 | K30: Pärnu | L30: Eldar | M30: 1 | N30: 465 | O30: 465
B31: 13 | E31: Negatiivsete arvude aritmeetiline keskmine | J31: 2015-01-18 | K31: Tallinn | L31: Aragorn | M31: 1 | N31: 499 | O31: 499
J32: 2015-01-19 | K32: Tallinn | L32: Frodo | M32: 3 | N32: 870 | O32: 2610
J33: 2015-01-19 | K33: Tartu | L33: Kalvar | M33: 1 | N33: 699 | O33: 699
J34: 2015-01-19 | K34: Võru | L34: Elend | M34: 5 | N34: 920 | O34: 4600
J35: 2015-01-20 | K35: Tallinn | L35: Elend | M35: 2 | N35: 920 | O35: 1840
J36: 2015-01-20 | K36: Võru | L36: Sauron | M36: 3 | N36: 339 | O36: 1017
J37: 2015-01-21 | K37: Pärnu | L37: Arven | M37: 1 | N37: 369 | O37: 369
J38: 2015-01-25 | K38: Võru | L38: Sauron | M38: 1 | N38: 339 | O38: 339
J39: 2015-01-26 | K39: Pärnu | L39: Gandalf | M39: 2 | N39: 849 | O39: 1698
M41: =SUM(M6:M40) -> 90 | O41: 54875

Sheet D_Fumkts
I5: Müükide arvestus | L5: =SUBTOTAL(9, L8:L42) -> 90 | N5: =SUBTOTAL(9, N8:N42) -> 54875
I7: Kuupäev | J7: Linn | K7: Arvuti | L7: Arv | M7: Hind | N7: Maksumus
I8: 2015-01-02 | J8: Tallinn | K8: Frodo | L8: 2 | M8: =VLOOKUP(Arvuti, Arvutid, 6, 0) -> 870 | N8: =Hind*Arv -> 1740
I9: 2015-01-02 | J9: Valga | K9: Balrog | L9: 1 | M9: 419 | N9: 419
I10: 2015-01-03 | J10: Tallinn | K10: Aragorn | L10: 2 | M10: 499 | N10: 998
I11: 2015-01-03 | J11: Tallinn | K11: Balrog | L11: 3 | M11: 419 | N11: 1257
I12: 2015-01-03 | J12: Võru | K12: Gandalf | L12: 2 | M12: 849 | N12: 1698
I13: 2015-01-04 | J13: Tallinn | K13: Eldar | L13: 3 | M13: 465 | N13: 1395
I14: 2015-01-04 | J14: Tartu | K14: Balrog | L14: 5 | M14: 419 | N14: 2095
I15: 2015-01-07 | J15: Pärnu | K15: Eldar | L15: 3 | M15: 465 | N15: 1395
I16: 2015-01-07 | J16: Tallinn | K16: Faram | L16: 1 | M16: 599 | N16: 599
I17: 2015-01-07 | J17: Valga | K17: Balrog | L17: 6 | M17: 419 | N17: 2514
I18: 2015-01-07 | J18: Valga | K18: Frodo | L18: 1 | M18: 870 | N18: 870
I19: 2015-01-09 | J19: Tallinn | K19: Grimbold | L19: 6 | M19: 1149 | N19: 6894
I20: 2015-01-10 | J20: Pärnu | K20: Elend | L20: 1 | M20: 920 | N20: 920
I21: 2015-01-10 | J21: Pärnu | K21: Rohan | L21: 4 | M21: 340 | N21: 1360
I22: 2015-01-10 | J22: Tartu | K22: Sauron | L22: 2 | M22: 339 | N22: 678
B23: Antud linnades müüdud arvutite arv ja maksumus | I23: 2015-01-11 | J23: Tallinn | K23: Frodo | L23: 1 | M23: 870 | N23: 870
B24: Linn | F24: Arv | G24: Maksumus | I24: 2015-01-11 | J24: Tartu | K24: Balrog | L24: 2 | M24: 419 | N24: 838
B25: Tallinn | F25: =DSUM(AM_1, "Arv", B24:B26) -> 53 | G25: =DSUM(AM_1, "Maksumus", B24:B26) -> 32767 | I25: 2015-01-11 | J25: Valga | K25: Aragorn | L25: 1 | M25: 499 | N25: 499
B26: Tartu | I26: 2015-01-14 | J26: Pärnu | K26: Gandalf | L26: 3 | M26: 849 | N26: 2547
I27: 2015-01-14 | J27: Tartu | K27: Frodo | L27: 4 | M27: 870 | N27: 3480
I28: 2015-01-14 | J28: Valga | K28: Kalvar | L28: 2 | M28: 699 | N28: 1398
B29: Linn | C29: Arvuti | F29: Arv | G29: Maksumus | I29: 2015-01-16 | J29: Tallinn | K29: Arven | L29: 5 | M29: 369 | N29: 1845
B30: Tallinn | C30: Aragorn | F30: =DSUM(AM_1, "Arv", B29:C30) -> 3 | G30: =DSUM(AM_1, "Maksumus", B29:C30) -> 1497 | I30: 2015-01-17 | J30: Tallinn | K30: Balrog | L30: 7 | M30: 419 | N30: 2933
I31: 2015-01-17 | J31: Tartu | K31: Aragorn | L31: 3 | M31: 499 | N31: 1497
I32: 2015-01-18 | J32: Pärnu | K32: Eldar | L32: 1 | M32: 465 | N32: 465
B33: Arvuti | C33: Kuupäev | D33: Kuupäev | F33: Arv | G33: Maksumus | I33: 2015-01-18 | J33: Tallinn | K33: Aragorn | L33: 1 | M33: 499 | N33: 499
B34: Aragorn | C34: >=01.01.13 | D34: <=15.01.13 | F34: =DSUM(AM_1, "Arv", B33:D34) -> 0 | G34: =DSUM(AM_1, "Maksumus", B33:D34) -> 0 | I34: 2015-01-19 | J34: Tallinn | K34: Frodo | L34: 3 | M34: 870 | N34: 2610
I35: 2015-01-19 | J35: Tartu | K35: Kalvar | L35: 1 | M35: 699 | N35: 699
I36: 2015-01-19 | J36: Võru | K36: Elend | L36: 5 | M36: 920 | N36: 4600
I37: 2015-01-20 | J37: Tallinn | K37: Elend | L37: 2 | M37: 920 | N37: 1840
I38: 2015-01-20 | J38: Võru | K38: Sauron | L38: 3 | M38: 339 | N38: 1017
I39: 2015-01-21 | J39: Pärnu | K39: Arven | L39: 1 | M39: 369 | N39: 369
I40: 2015-01-25 | J40: Võru | K40: Sauron | L40: 1 | M40: 339 | N40: 339
I41: 2015-01-26 | J41: Pärnu | K41: Gandalf | L41: 2 | M41: 849 | N41: 1698

Sheet P_abi
B2: Puidu hinnkiri
B4: Liik | C4: Sort
C5: 1 | D5: 2 | E5: 3
B6: haab | C6: 50 | D6: 45 | E6: 40
B7: kask | C7: 70 | D7: 63 | E7: 56
B8: kuusk | C8: 80 | D8: 72 | E8: 64
B9: küte | C9: 47 | D9: 42 | E9: 38
B10: lepp | C10: 65 | D10: 59 | E10: 52
B11: mänd | C11: 75 | D11: 68 | E11: 60
B12: saar | C12: 85 | D12: 77 | E12: 68
B13: tamm | C13: 110 | D13: 99 | E13: 88
B14: vaher | C14: 95 | D14: 86 | E14: 76
B18: P_müüjad | D18: Maakonnad
B19: Karu | D19: Harju
B20: Hunt | D20: Lääne
B21: Jänes | D21: Paide
B22: Rebane | D22: Pärnu
B23: Siil | D23: Rapla
B24: Põder | D24: Valga
B25: Ilves | D25: Viljandi
D26: Võru
B29: P_ostjad | C29: Maakond
B30: Haab | C30: Pärnu
B31: Ilves | C31: Lääne
B32: Juur | C32: Pärnu
B33: Kaasik | C33: Pärnu
B34: Karu | C34: Lääne
B35: Kask | C35: Pärnu
B36: Kass | C36: Paide
B37: Kaun | C37: Pärnu
B38: Kuusik | C38: Viljandi
B39: Kuusk | C39: Lääne
B40: Känd | C40: Harju
B41: Lepik | C41: Paide
B42: Lepp | C42: Viljandi
B43: Lind | C43: Valga
B44: Luik | C44: Viljandi
B45: Mänd | C45: Harju
B46: Paju | C46: Võru
B47: Pihel | C47: Rapla
B48: Saar | C48: Valga
B49: Seen | C49: Võru
B50: Tuvi | C50: Harju
B51: Vaher | C51: Rapla
B52: Varblane | C52: Harju
B53: Vares | C53: Rapla

Sheet Sheet2
